{"text_format":"1","workbook":"xlsx","n_sheets":13,"sheets":["Scans","Book Shark K","Book Shark A","Book Shark B","Book Shark C","Book Shark D","Book Shark E","Book Shark F","Book Shark G","Book Shark H","Book Shark I","User Information","Book Template"],"not_rendered":{"charts":0,"images":0,"macros":1,"external_links":0,"defined_names":0,"comments":0,"pivot_tables":0},"unopened":[],"bounds":{"document_bytes":16777216,"sheet_cells":100000,"rows_first":2000,"rows_last":500,"rows_between":2000,"halvings":0,"cell_chars":16384,"cell_head_chars":4096},"cells_cut":0,"cells_raw":0,"read":"whole","date_system":"1900"}

{"sheet":"Scans","index":0,"n_rows":1,"n_cols":2,"rows_kept":1,"cut":false,"hidden":false,"merged":[]}
[null,"Scaned ISBN"]

{"sheet":"Book Shark K","index":1,"n_rows":36,"n_cols":4,"rows_kept":36,"cut":false,"hidden":true,"merged":[]}
[]
["Book Shark K"]
[null,"ISBN Number","Title","Accounted for"]
["Exploring the World"]
[null,null,"A City Through Time (PA30)",{"$f":"COUNTIF(Scans!B:B,'Book Shark K'!B9)>0","v":false}]
[null,null,"A Street Through Time (PA31)",{"$f":"COUNTIF(Scans!B:B,'Book Shark K'!B10)>0","v":false}]
[null,null,"Cars and Trucks and Things that Go (PA40)",{"$f":"COUNTIF(Scans!B:B,'Book Shark K'!B13)>0","v":false}]
[null,null,"Feelings (PA37)",{"$f":"COUNTIF(Scans!B:B,'Book Shark K'!B12)>0","v":false}]
[null,null,"Kids Beginner's World Atlas (PA32)",{"$f":"COUNTIF(Scans!B:B,'Book Shark K'!B11)>0","v":false}]
[null,null,"People (PG01)",{"$f":"COUNTIF(Scans!B:B,'Book Shark K'!B5)>0","v":false}]
[null,null,"Pre-Kindergarten Instructor's Guide (PHB)",{"$f":"COUNTIF(Scans!B:B,'Book Shark K'!B14)>0","v":false}]
[null,null,"Richard Scarry's What Do People Do All Day? (TA20)",{"$f":"COUNTIF(Scans!B:B,'Book Shark K'!B8)>0","v":false}]
[null,null,"Then and Now (PG06)",{"$f":"COUNTIF(Scans!B:B,'Book Shark K'!B7)>0","v":false}]
[null,null,"Things People Do (PG04)",{"$f":"COUNTIF(Scans!B:B,'Book Shark K'!B6)>0","v":false}]
["Read-Alouds"]
[null,null,"Babe the Gallant Pig (BA22)",{"$f":"COUNTIF(Scans!B:B,'Book Shark K'!B20)>0","v":false}]
[null,null,"Eric Carle's Animals Animals (PA10)",{"$f":"COUNTIF(Scans!B:B,'Book Shark K'!B19)>0","v":false}]
[null,null,"Mother Goose (PA36)",{"$f":"COUNTIF(Scans!B:B,'Book Shark K'!B22)>0","v":false}]
[null,null,"Stories from Around the World (PA09)",{"$f":"COUNTIF(Scans!B:B,'Book Shark K'!B18)>0","v":false}]
[null,null,"The Lion Storyteller Bedtime Book (PA03)",{"$f":"COUNTIF(Scans!B:B,'Book Shark K'!B17)>0","v":false}]
[null,null,"Winnie the Pooh (AA32)",{"$f":"COUNTIF(Scans!B:B,'Book Shark K'!B16)>0","v":false}]
[null,null,"You Read to Me & I'll Read to You (PA34)",{"$f":"COUNTIF(Scans!B:B,'Book Shark K'!B21)>0","v":false}]
["Language Arts"]
[null,null,"Dr. Seuss's ABC (PL02)",{"$f":"COUNTIF(Scans!B:B,'Book Shark K'!B25)>0","v":false}]
[null,null,"First Thousand Words (PL01)",{"$f":"COUNTIF(Scans!B:B,'Book Shark K'!B24)>0","v":false}]
["Readiness Skills"]
[null,null,"Developing the Early Learner, Volume 1 (PR011)",{"$f":"COUNTIF(Scans!B:B,'Book Shark K'!B27)>0","v":false}]
[null,null,"Developing the Early Learner, Volume 2 (PR012)",{"$f":"COUNTIF(Scans!B:B,'Book Shark K'!B28)>0","v":false}]
[null,null,"Developing the Early Learner, Volume 3 (PR013)",{"$f":"COUNTIF(Scans!B:B,'Book Shark K'!B29)>0","v":false}]
[null,null,"Developing the Early Learner, Volume 4 (PR014)",{"$f":"COUNTIF(Scans!B:B,'Book Shark K'!B30)>0","v":false}]
["Science"]
[null,null,"The Berenstain Bears' Big Book of Science and Nature (PS12)",{"$f":"COUNTIF(Scans!B:B,'Book Shark K'!B32)>0","v":false}]
[null,null,"What's Under the Sea? (PS08)",{"$f":"COUNTIF(Scans!B:B,'Book Shark K'!B33)>0","v":false}]
[null,null,"Why Do Tigers Have Stripes? (PS07)",{"$f":"COUNTIF(Scans!B:B,'Book Shark K'!B34)>0","v":false}]
["Math"]
[null,null,"Pre-K Math Manipulatives (PM01)",{"$f":"COUNTIF(Scans!B:B,'Book Shark K'!B36)>0","v":false}]

{"sheet":"Book Shark A","index":2,"n_rows":64,"n_cols":5,"rows_kept":64,"cut":false,"hidden":true,"merged":[]}
[]
["Book Shark A"]
[null,"ISBN Number","Title","Accounted for"]
["History A"]
[null,null,"History A Instructor's Guide │Ages 5-7 (AHB)",{"$f":"COUNTIF(Scans!B:B,'Book Shark A'!B5)>0","v":false}]
[null,142401382,"Johnny Appleseed: The Story of a Legend (AA24)",{"$f":"COUNTIF(Scans!B:B,'Book Shark A'!B6)>0","v":false}]
[null,746011091,"Living Long Ago (AH02)",{"$f":"COUNTIF(Scans!B:B,'Book Shark A'!B7)>0","v":false}]
[null,803721544,"Mary on Horseback (AA23)",{"$f":"COUNTIF(Scans!B:B,'Book Shark A'!B8)>0","v":false}]
[null,395968887,"Out of Darkness (AH08)",{"$f":"COUNTIF(Scans!B:B,'Book Shark A'!B9)>0","v":false}]
[null,794524001,"The Story of Exploration (AH07)",{"$f":"COUNTIF(Scans!B:B,'Book Shark A'!B10)>0","v":false}]
[null,null,"Timeline Figures - K (AHB1)",{"$f":"COUNTIF(Scans!B:B,'Book Shark A'!B11)>0","v":false},"Consumable"]
[null,794530273,"Usborne Internet-Linked Children's Encyclopedia (AH04)",{"$f":"COUNTIF(Scans!B:B,'Book Shark A'!B12)>0","v":false}]
[null,746007981,"Wild Places (AH01)",{"$f":"COUNTIF(Scans!B:B,'Book Shark A'!B13)>0","v":false}]
["Read-Alouds A"]
[null,"044041301X","A Grain of Rice (AA14)",{"$f":"COUNTIF(Scans!B:B,'Book Shark A'!B15)>0","v":false}]
[null,null,"Beezus and Ramona (AA30)",{"$f":"COUNTIF(Scans!B:B,'Book Shark A'!B16)>0","v":false}]
[null,380732521,"Dolphin Adventure (AA10)",{"$f":"COUNTIF(Scans!B:B,'Book Shark A'!B17)>0","v":false}]
[null,"038073253X","Dolphin Treasure (AA22)",{"$f":"COUNTIF(Scans!B:B,'Book Shark A'!B18)>0","v":false}]
[null,152052259,"Here's a Penny (AA27)",{"$f":"COUNTIF(Scans!B:B,'Book Shark A'!B19)>0","v":false}]
[null,null,"James Herriot's Treasury for Children (AA21)",{"$f":"COUNTIF(Scans!B:B,'Book Shark A'!B20)>0","v":false}]
[null,64400018,"Little House in the Big Woods (AA29)",{"$f":"COUNTIF(Scans!B:B,'Book Shark A'!B21)>0","v":false}]
[null,486492834,"My Father's Dragon (AA09)",{"$f":"COUNTIF(Scans!B:B,'Book Shark A'!B22)>0","v":false}]
[null,1935570102,"No Children, No Pets (AA28)",{"$f":"COUNTIF(Scans!B:B,'Book Shark A'!B23)>0","v":false}]
[null,394826817,"Richard Scarry's Please and Thank You Book (AA06)",{"$f":"COUNTIF(Scans!B:B,'Book Shark A'!B24)>0","v":false}]
[null,679887369,"The Arnold Lobel Book of Mother Goose (AA04)",{"$f":"COUNTIF(Scans!B:B,'Book Shark A'!B25)>0","v":false}]
[null,807508519,"The Boxcar Children (AA17)",{"$f":"COUNTIF(Scans!B:B,'Book Shark A'!B26)>0","v":false}]
[null,525444440,"The House at Pooh Corner (AA01)",{"$f":"COUNTIF(Scans!B:B,'Book Shark A'!B27)>0","v":false}]
[null,null,"The Hundred Dresses (AA15)",{"$f":"COUNTIF(Scans!B:B,'Book Shark A'!B28)>0","v":false}]
[null,140368574,"The Light at Tern Rock (AA11)",{"$f":"COUNTIF(Scans!B:B,'Book Shark A'!B29)>0","v":false}]
[null,152055711,"The Llama Who Had No Pajama (AA05)",{"$f":"COUNTIF(Scans!B:B,'Book Shark A'!#REF!)>0","v":false}]
[null,440483077,"The Story of Dr. Dolittle (AA02)",{"$f":"COUNTIF(Scans!B:B,'Book Shark A'!B31)>0","v":false}]
[null,140310762,"Twenty and Ten (AA16)",{"$f":"COUNTIF(Scans!B:B,'Book Shark A'!B32)>0","v":false}]
["Level K Readers"]
[null,1887840680,"Fun Tales (KR01)",{"$f":"COUNTIF(Scans!B:B,'Book Shark A'!B34)>0","v":false}]
["Required Resources"]
[null,null,"Create-a-Calendar (AE01)",{"$f":"COUNTIF(Scans!B:B,'Book Shark A'!B36)>0","v":false},"Consumable"]
[null,null,"D-Ring 3-inch Binder with Tabs (BK50)",{"$f":"COUNTIF(Scans!B:B,'Book Shark A'!B37)>0","v":false}]
[null,null,"Markable Map (MAP1)",{"$f":"COUNTIF(Scans!B:B,'Book Shark A'!B38)>0","v":false}]
[null,null,"Markable Map Markers (MAP2)",{"$f":"COUNTIF(Scans!B:B,'Book Shark A'!B39)>0","v":false}]
[null,1935570951,"The Timeline Book (RR120)",{"$f":"COUNTIF(Scans!B:B,'Book Shark A'!B40)>0","v":false}]
["Language Arts"]
[null,null,"Alphabet Sounds BINGO Cards (KL082)",{"$f":"COUNTIF(Scans!B:B,'Book Shark A'!B42)>0","v":false}]
[null,null,"BINGO Markers (KL081)",{"$f":"COUNTIF(Scans!B:B,'Book Shark A'!B43)>0","v":false}]
[null,null,"Go A to Z! (KL11)",{"$f":"COUNTIF(Scans!B:B,'Book Shark A'!B44)>0","v":false}]
[null,null,"Language Arts K Instructor's Guide (KLB)",{"$f":"COUNTIF(Scans!B:B,'Book Shark A'!B45)>0","v":false}]
[null,394834860,"My First Picture Dictionary (KL04)",{"$f":"COUNTIF(Scans!B:B,'Book Shark A'!B46)>0","v":false}]
["Science"]
[null,null,"Discover & Do Level K DVD (AS05)",{"$f":"COUNTIF(Scans!B:B,'Book Shark A'!B48)>0","v":false}]
[null,794513409,"How Flowers Grow (AS02)",{"$f":"COUNTIF(Scans!B:B,'Book Shark A'!B49)>0","v":false}]
[null,736878998,"Isaac Newton and the Laws of Motion (AS03)",{"$f":"COUNTIF(Scans!B:B,'Book Shark A'!B50)>0","v":false}]
[null,null,"Science A Instructor's Guide │Ages 5-7 (ASB)",{"$f":"COUNTIF(Scans!B:B,'Book Shark A'!B51)>0","v":false}]
[null,794524214,"Science Activities, Volume 2 (AS04)",{"$f":"COUNTIF(Scans!B:B,'Book Shark A'!B52)>0","v":false}]
[null,null,"Science Supplies Kit A (ASK)",{"$f":"COUNTIF(Scans!B:B,'Book Shark A'!B53)>0","v":false},"Consumable"]
[null,null,"Weather (AS01)",{"$f":"COUNTIF(Scans!B:B,'Book Shark A'!B54)>0","v":false}]
["Math"]
[null,null,"Math-U-See Primer Student Workbook (KM16)",{"$f":"COUNTIF(Scans!B:B,'Book Shark A'!B56)>0","v":false},"Consumable"]
[null,null,"Math-U-See Integer Block Kit (RM15)",{"$f":"COUNTIF(Scans!B:B,'Book Shark A'!B57)>0","v":false}]
[null,null,"Math-U-See Primer Instruction Pack (KM15)",{"$f":"COUNTIF(Scans!B:B,'Book Shark A'!B58)>0","v":false}]
["Handwriting"]
[null,null,"Chalkboard with Chalk & Sponge for Handwriting Without Tears (KL173)",{"$f":"COUNTIF(Scans!B:B,'Book Shark A'!B60)>0","v":false}]
[null,null,"Handwriting Without Tears Capital Letter Wood Pieces (KL175)",{"$f":"COUNTIF(Scans!B:B,'Book Shark A'!B61)>0","v":false}]
[null,null,"Handwriting Without Tears: Letters & Numbers for Me (KL172)",{"$f":"COUNTIF(Scans!B:B,'Book Shark A'!B62)>0","v":false}]
[null,null,"Handwriting Without Tears: Mat for Wood Pieces (KL176)",{"$f":"COUNTIF(Scans!B:B,'Book Shark A'!B63)>0","v":false}]
[null,null,"Lined Paper for approx. levels K-1 (KL174)",{"$f":"COUNTIF(Scans!B:B,'Book Shark A'!B64)>0","v":false}]

{"sheet":"Book Shark B","index":3,"n_rows":72,"n_cols":5,"rows_kept":72,"cut":false,"hidden":false,"merged":[]}
[]
["Book Shark B"]
[null,"ISBN Number","Title","Accounted for","Alternate Accounted for"]
["History B"]
[null,64451755,"Archaeologists Dig For Clues (BH08)",{"$f":"COUNTIF(Scans!B:B,'Book Shark B'!B5)>0","v":false},{"$f":"COUNTIF(Scans!B:B,'Book Shark B'!A5)>0","v":false}]
[null,null,"Game On in Ancient Greece (AH09)",{"$f":"COUNTIF(Scans!B:B,'Book Shark B'!B6)>0","v":false},{"$f":"COUNTIF(Scans!C:C,'Book Shark B'!A6)>0","v":false}]
[null,null,"History B Instructor's Guide │Ages 6-8 (BHB)",{"$f":"COUNTIF(Scans!B:B,'Book Shark B'!B7)>0","v":false},{"$f":"COUNTIF(Scans!C:C,'Book Shark B'!A7)>0","v":false}]
[null,null,"On the Run in Ancient China (BA25)",{"$f":"COUNTIF(Scans!B:B,'Book Shark B'!B8)>0","v":false},{"$f":"COUNTIF(Scans!C:C,'Book Shark B'!A8)>0","v":false}]
[null,860201899,"Peoples of the World (BH05)",{"$f":"COUNTIF(Scans!B:B,'Book Shark B'!B9)>0","v":false},{"$f":"COUNTIF(Scans!C:C,'Book Shark B'!A9)>0","v":false}]
[null,689801785,"The Great Wall of China (BH10)",{"$f":"COUNTIF(Scans!B:B,'Book Shark B'!B10)>0","v":false},{"$f":"COUNTIF(Scans!C:C,'Book Shark B'!A10)>0","v":false}]
[null,null,"The Silk Route: 7,000 Miles of History (BA27)",{"$f":"COUNTIF(Scans!B:B,'Book Shark B'!B11)>0","v":false},{"$f":"COUNTIF(Scans!C:C,'Book Shark B'!A11)>0","v":false}]
[null,794524788,"The Usborne Book of World History (CH02)",{"$f":"COUNTIF(Scans!B:B,'Book Shark B'!B12)>0","v":false},{"$f":"COUNTIF(Scans!C:C,'Book Shark B'!A12)>0","v":false}]
[null,746033656,"The Usborne Time Traveler (BH01)",{"$f":"COUNTIF(Scans!B:B,'Book Shark B'!B13)>0","v":false},{"$f":"COUNTIF(Scans!C:C,'Book Shark B'!A13)>0","v":false}]
[null,null,"Timeline Figures - 1 (BHB1)",{"$f":"COUNTIF(Scans!B:B,'Book Shark B'!B14)>0","v":false},{"$f":"COUNTIF(Scans!C:C,'Book Shark B'!A14)>0","v":false}]
[null,394891899,"Tut's Mummy Lost & Found (BH02)",{"$f":"COUNTIF(Scans!B:B,'Book Shark B'!B15)>0","v":false},{"$f":"COUNTIF(Scans!C:C,'Book Shark B'!A15)>0","v":false}]
[null,null,"You Wouldn't Want to Be a Sumerian Slave! (BA26)",{"$f":"COUNTIF(Scans!B:B,'Book Shark B'!B16)>0","v":false},{"$f":"COUNTIF(Scans!C:C,'Book Shark B'!A16)>0","v":false}]
["Read-Alouds B"]
[null,64400557,"Charlotte's Web (BA01)",{"$f":"COUNTIF(Scans!B:B,'Book Shark B'!B18)>0","v":false},{"$f":"COUNTIF(Scans!C:C,'Book Shark B'!A18)>0","v":false}]
[null,152162801,"Detectives in Togas (BA14)",{"$f":"COUNTIF(Scans!B:B,'Book Shark B'!B19)>0","v":false},{"$f":"COUNTIF(Scans!C:C,'Book Shark B'!A19)>0","v":false}]
[null,486270890,"Favorite Poems of Childhood (BA12)",{"$f":"COUNTIF(Scans!B:B,'Book Shark B'!B20)>0","v":false},{"$f":"COUNTIF(Scans!C:C,'Book Shark B'!A20)>0","v":false}]
[null,544225279,"Gooney Bird Greene (BA03)",{"$f":"COUNTIF(Scans!B:B,'Book Shark B'!B21)>0","v":false},{"$f":"COUNTIF(Scans!C:C,'Book Shark B'!A21)>0","v":false}]
[null,380709120,"Henry Huggins (BA02)",{"$f":"COUNTIF(Scans!B:B,'Book Shark B'!B22)>0","v":false},{"$f":"COUNTIF(Scans!C:C,'Book Shark B'!A22)>0","v":false}]
[null,140309276,"Homer Price (BA06)",{"$f":"COUNTIF(Scans!B:B,'Book Shark B'!B23)>0","v":false},{"$f":"COUNTIF(Scans!C:C,'Book Shark B'!A23)>0","v":false}]
[null,374436363,"It Could Always Be Worse (BA18)",{"$f":"COUNTIF(Scans!B:B,'Book Shark B'!B24)>0","v":false},{"$f":"COUNTIF(Scans!C:C,'Book Shark B'!A24)>0","v":false}]
[null,152055029,"Little Pear (BA15)",{"$f":"COUNTIF(Scans!B:B,'Book Shark B'!B25)>0","v":false},{"$f":"COUNTIF(Scans!C:C,'Book Shark B'!A25)>0","v":false}]
[null,890847061,"Mountain Born (BA10)",{"$f":"COUNTIF(Scans!B:B,'Book Shark B'!B26)>0","v":false},{"$f":"COUNTIF(Scans!C:C,'Book Shark B'!A26)>0","v":false}]
[null,316058432,"Mr. Popper's Penguins (BA08)",{"$f":"COUNTIF(Scans!B:B,'Book Shark B'!B27)>0","v":false},{"$f":"COUNTIF(Scans!C:C,'Book Shark B'!A27)>0","v":false}]
[null,440413613,"Owls in the Family (BA16)",{"$f":"COUNTIF(Scans!B:B,'Book Shark B'!B28)>0","v":false},{"$f":"COUNTIF(Scans!C:C,'Book Shark B'!A28)>0","v":false}]
[null,"076366443X","Silver Street Farm (BA24)",{"$f":"COUNTIF(Scans!B:B,'Book Shark B'!B29)>0","v":false},{"$f":"COUNTIF(Scans!C:C,'Book Shark B'!A29)>0","v":false}]
[null,689851243,"The Year of Miss Agnes (BA05)",{"$f":"COUNTIF(Scans!B:B,'Book Shark B'!B30)>0","v":false},{"$f":"COUNTIF(Scans!C:C,'Book Shark B'!A30)>0","v":false}]
[null,1887840133,"Understood Betsy (BA11)",{"$f":"COUNTIF(Scans!B:B,'Book Shark B'!B31)>0","v":false},{"$f":"COUNTIF(Scans!C:C,'Book Shark B'!A31)>0","v":false}]
["Level 1 Readers"]
[null,"1R12","A Big Ball of String (1R12)",{"$f":"COUNTIF(Scans!B:B,'Book Shark B'!B33)>0","v":false},{"$f":"COUNTIF(Scans!C:C,'Book Shark B'!A33)>0","v":false}]
[null,394800168,"Green Eggs and Ham (1R10)",{"$f":"COUNTIF(Scans!B:B,'Book Shark B'!B34)>0","v":false},{"$f":"COUNTIF(Scans!C:C,'Book Shark B'!A34)>0","v":false}]
[null,1887840494,"I Can Read It! Book 1 (1R161)",{"$f":"COUNTIF(Scans!B:B,'Book Shark B'!B35)>0","v":false},{"$f":"COUNTIF(Scans!C:C,'Book Shark B'!A35)>0","v":false}]
[null,1887840613,"I Can Read It! Book 2 (1R162)",{"$f":"COUNTIF(Scans!B:B,'Book Shark B'!B36)>0","v":false},{"$f":"COUNTIF(Scans!C:C,'Book Shark B'!A36)>0","v":false}]
[null,1887840478,"I Can Read It! Book 3 (1R163)",{"$f":"COUNTIF(Scans!B:B,'Book Shark B'!B37)>0","v":false},{"$f":"COUNTIF(Scans!C:C,'Book Shark B'!A37)>0","v":false}]
[null,"188784046X","I Can Read It! Word Lists (1R164)",{"$f":"COUNTIF(Scans!B:B,'Book Shark B'!B38)>0","v":false},{"$f":"COUNTIF(Scans!C:C,'Book Shark B'!A38)>0","v":false}]
[null,394800133,"One Fish, Two Fish... (1R04)",{"$f":"COUNTIF(Scans!B:B,'Book Shark B'!B39)>0","v":false},{"$f":"COUNTIF(Scans!C:C,'Book Shark B'!A39)>0","v":false}]
[null,394800176,"Put Me in the Zoo (1R02)",{"$f":"COUNTIF(Scans!B:B,'Book Shark B'!B40)>0","v":false},{"$f":"COUNTIF(Scans!C:C,'Book Shark B'!A40)>0","v":false}]
[null,1887840893,"The Best Trick (1R13)",{"$f":"COUNTIF(Scans!B:B,'Book Shark B'!B41)>0","v":false},{"$f":"COUNTIF(Scans!C:C,'Book Shark B'!A41)>0","v":false}]
[null,394896955,"The Bravest Dog Ever: The True Story of Balto (1R14)",{"$f":"COUNTIF(Scans!B:B,'Book Shark B'!B42)>0","v":false},{"$f":"COUNTIF(Scans!C:C,'Book Shark B'!A42)>0","v":false}]
[null,"039480001X","The Cat in the Hat (1R06)",{"$f":"COUNTIF(Scans!B:B,'Book Shark B'!B43)>0","v":false},{"$f":"COUNTIF(Scans!C:C,'Book Shark B'!A43)>0","v":false}]
["Required Resources"]
[null,null,"D-Ring 3-inch Binder with Tabs (BK50)",{"$f":"COUNTIF(Scans!B:B,'Book Shark B'!B45)>0","v":false},{"$f":"COUNTIF(Scans!C:C,'Book Shark B'!A45)>0","v":false}]
[null,null,"Markable Map (MAP1)",{"$f":"COUNTIF(Scans!B:B,'Book Shark B'!B46)>0","v":false},{"$f":"COUNTIF(Scans!C:C,'Book Shark B'!A46)>0","v":false}]
[null,null,"Markable Map Markers (MAP2)",{"$f":"COUNTIF(Scans!B:B,'Book Shark B'!B47)>0","v":false},{"$f":"COUNTIF(Scans!C:C,'Book Shark B'!A47)>0","v":false}]
[null,null,"The Timeline Book (RR120)",{"$f":"COUNTIF(Scans!B:B,'Book Shark B'!B48)>0","v":false},{"$f":"COUNTIF(Scans!C:C,'Book Shark B'!A48)>0","v":false}]
["Language Arts"]
[null,null,"BINGO Markers (KL081)",{"$f":"COUNTIF(Scans!B:B,'Book Shark B'!B50)>0","v":false},{"$f":"COUNTIF(Scans!C:C,'Book Shark B'!A50)>0","v":false}]
[null,null,"Go Blend! (1L10)",{"$f":"COUNTIF(Scans!B:B,'Book Shark B'!B51)>0","v":false},{"$f":"COUNTIF(Scans!C:C,'Book Shark B'!A51)>0","v":false}]
[null,null,"Language Arts 1 Instructor's Guide (1LB)",{"$f":"COUNTIF(Scans!B:B,'Book Shark B'!B52)>0","v":false},{"$f":"COUNTIF(Scans!C:C,'Book Shark B'!A52)>0","v":false}]
[null,null,"Letter & Word BINGO (1L09)",{"$f":"COUNTIF(Scans!B:B,'Book Shark B'!B53)>0","v":false},{"$f":"COUNTIF(Scans!C:C,'Book Shark B'!A53)>0","v":false}]
["Science"]
[null,66154,"Discover & Do, Level 1 (DVD) (BS03)",{"$f":"COUNTIF(Scans!B:B,'Book Shark B'!B55)>0","v":false},{"$f":"COUNTIF(Scans!C:C,'Book Shark B'!A55)>0","v":false}]
[null,794530605,"First Encyclopedia of the Human Body (BS04)",{"$f":"COUNTIF(Scans!B:B,'Book Shark B'!B56)>0","v":false},{"$f":"COUNTIF(Scans!C:C,'Book Shark B'!A56)>0","v":false}]
[null,812097939,"Pasteur's Fight Against Microbes (BS01)",{"$f":"COUNTIF(Scans!B:B,'Book Shark B'!B57)>0","v":false},{"$f":"COUNTIF(Scans!C:C,'Book Shark B'!A57)>0","v":false}]
[null,794527523,"Science Activities, Volume 1 (BS07)",{"$f":"COUNTIF(Scans!B:B,'Book Shark B'!B58)>0","v":false},{"$f":"COUNTIF(Scans!C:C,'Book Shark B'!A58)>0","v":false}]
[null,null,"Science B Instructor's Guide │Ages 6-8 (BSB)",{"$f":"COUNTIF(Scans!B:B,'Book Shark B'!B59)>0","v":false},{"$f":"COUNTIF(Scans!C:C,'Book Shark B'!A59)>0","v":false}]
[null,null,"Science Supplies Kit B (BSK)",{"$f":"COUNTIF(Scans!B:B,'Book Shark B'!B60)>0","v":false},{"$f":"COUNTIF(Scans!C:C,'Book Shark B'!A60)>0","v":false}]
[null,789478544,"Space (BS02)",{"$f":"COUNTIF(Scans!B:B,'Book Shark B'!B61)>0","v":false},{"$f":"COUNTIF(Scans!C:C,'Book Shark B'!A61)>0","v":false}]
[null,590403605,"The Magic School Bus at the Waterworks (BS08)",{"$f":"COUNTIF(Scans!B:B,'Book Shark B'!B62)>0","v":false},{"$f":"COUNTIF(Scans!C:C,'Book Shark B'!A62)>0","v":false}]
[null,794520332,"The Usborne World of Animals (BS10)",{"$f":"COUNTIF(Scans!B:B,'Book Shark B'!B63)>0","v":false},{"$f":"COUNTIF(Scans!C:C,'Book Shark B'!A63)>0","v":false}]
[null,794516238,"Why Do People Eat? (BS09)",{"$f":"COUNTIF(Scans!B:B,'Book Shark B'!B64)>0","v":false},{"$f":"COUNTIF(Scans!C:C,'Book Shark B'!A64)>0","v":false}]
["Math"]
[null,null,"Math-U-See Alpha Instruction Pack (1M15)",{"$f":"COUNTIF(Scans!B:B,'Book Shark B'!B66)>0","v":false},{"$f":"COUNTIF(Scans!C:C,'Book Shark B'!A66)>0","v":false}]
[null,null,"Math-U-See Alpha Student Pack (1M16)",{"$f":"COUNTIF(Scans!B:B,'Book Shark B'!B67)>0","v":false},{"$f":"COUNTIF(Scans!C:C,'Book Shark B'!A67)>0","v":false}]
[null,null,"Math-U-See Integer Block Kit (RM15)",{"$f":"COUNTIF(Scans!B:B,'Book Shark B'!B68)>0","v":false},{"$f":"COUNTIF(Scans!C:C,'Book Shark B'!A68)>0","v":false}]
["Handwriting"]
[null,null,"Handwriting Without Tears: My Printing Book (1L172)",{"$f":"COUNTIF(Scans!B:B,'Book Shark B'!B70)>0","v":false},{"$f":"COUNTIF(Scans!C:C,'Book Shark B'!A70)>0","v":false}]
[null,null,"Handwriting Without Tears: Print Alphabet Desk Strips (1L174)",{"$f":"COUNTIF(Scans!B:B,'Book Shark B'!B71)>0","v":false},{"$f":"COUNTIF(Scans!C:C,'Book Shark B'!A71)>0","v":false}]
[null,null,"Lined Paper for approx. levels K-1 (KL174)",{"$f":"COUNTIF(Scans!B:B,'Book Shark B'!B72)>0","v":false},{"$f":"COUNTIF(Scans!C:C,'Book Shark B'!A72)>0","v":false}]

{"sheet":"Book Shark C","index":4,"n_rows":82,"n_cols":5,"rows_kept":82,"cut":false,"hidden":false,"merged":[]}
[]
["Book Shark C"]
[null,"ISBN Number","Title","Accounted for","Alternate Accounted for"]
["History C"]
[null,763621641,"Castle Diary (CA15)",{"$f":"COUNTIF(Scans!B:B,'Book Shark C'!B5)>0","v":false},{"$f":"COUNTIF(Scans!B:B,'Book Shark C'!A5)>0","v":false}]
[null,1887840117,"Eric the Red and Leif the Lucky (CH08)",{"$f":"COUNTIF(Scans!B:B,'Book Shark C'!B6)>0","v":false},{"$f":"COUNTIF(Scans!B:B,'Book Shark C'!A6)>0","v":false}]
[null,1883028132,"Geography Songs CD Kit (CH06)",{"$f":"COUNTIF(Scans!B:B,'Book Shark C'!B7)>0","v":false},{"$f":"COUNTIF(Scans!B:B,'Book Shark C'!A7)>0","v":false}]
[null,688179614,"Good Queen Bess (CH10)",{"$f":"COUNTIF(Scans!B:B,'Book Shark C'!B8)>0","v":false},{"$f":"COUNTIF(Scans!B:B,'Book Shark C'!A8)>0","v":false}]
[null,null,"History C Instructor's Guide │Ages 7-9 (CHB)",{"$f":"COUNTIF(Scans!B:B,'Book Shark C'!B9)>0","v":false},{"$f":"COUNTIF(Scans!B:B,'Book Shark C'!A9)>0","v":false}]
[null,60521139,"Michelangelo (CH11)",{"$f":"COUNTIF(Scans!B:B,'Book Shark C'!B10)>0","v":false},{"$f":"COUNTIF(Scans!B:B,'Book Shark C'!A10)>0","v":false}]
[null,"CH16","Peter The Great (CH05)",{"$f":"COUNTIF(Scans!B:B,'Book Shark C'!B11)>0","v":false},{"$f":"COUNTIF(Scans!B:B,'Book Shark C'!A11)>0","v":false}]
[null,null,"Timeline Figures - 2 (CHB1)",{"$f":"COUNTIF(Scans!B:B,'Book Shark C'!B12)>0","v":false},{"$f":"COUNTIF(Scans!B:B,'Book Shark C'!A12)>0","v":false}]
[null,null,"You Wouldn't Want to be Sick in the 16th Century (CH18)",{"$f":"COUNTIF(Scans!B:B,'Book Shark C'!B13)>0","v":false},{"$f":"COUNTIF(Scans!B:B,'Book Shark C'!A13)>0","v":false}]
[null,null,"You Wouldn't Want to Explore with Marco Polo (CH19)",{"$f":"COUNTIF(Scans!B:B,'Book Shark C'!B14)>0","v":false},{"$f":"COUNTIF(Scans!B:B,'Book Shark C'!A14)>0","v":false}]
["Read-Alouds C"]
[null,null,"104 Poems of Whimsy and Wisdom (CA30)",{"$f":"COUNTIF(Scans!B:B,'Book Shark C'!B16)>0","v":false},{"$f":"COUNTIF(Scans!B:B,'Book Shark C'!A16)>0","v":false}]
[null,547237561,"Adventures of Sir Lancelot the Great (CA21)",{"$f":"COUNTIF(Scans!B:B,'Book Shark C'!B17)>0","v":false},{"$f":"COUNTIF(Scans!B:B,'Book Shark C'!A17)>0","v":false}]
[null,null,"Captain Nobody (CA22)",{"$f":"COUNTIF(Scans!B:B,'Book Shark C'!B18)>0","v":false},{"$f":"COUNTIF(Scans!B:B,'Book Shark C'!A18)>0","v":false}]
[null,null,"Encyclopedia Brown Cracks the Case (CA29)",{"$f":"COUNTIF(Scans!B:B,'Book Shark C'!B19)>0","v":false},{"$f":"COUNTIF(Scans!B:B,'Book Shark C'!A19)>0","v":false}]
[null,802773885,"Kildee House (BA23)",{"$f":"COUNTIF(Scans!B:B,'Book Shark C'!B20)>0","v":false},{"$f":"COUNTIF(Scans!B:B,'Book Shark C'!A20)>0","v":false}]
[null,1887840044,"Red Sails to Capri (CA11)",{"$f":"COUNTIF(Scans!B:B,'Book Shark C'!B21)>0","v":false},{"$f":"COUNTIF(Scans!B:B,'Book Shark C'!A21)>0","v":false}]
[null,null,"Sticks Across the Chimney (CA24)",{"$f":"COUNTIF(Scans!B:B,'Book Shark C'!B22)>0","v":false},{"$f":"COUNTIF(Scans!B:B,'Book Shark C'!A22)>0","v":false}]
[null,64405850,"Strawberry Girl (CA05)",{"$f":"COUNTIF(Scans!B:B,'Book Shark C'!B23)>0","v":false},{"$f":"COUNTIF(Scans!B:B,'Book Shark C'!A23)>0","v":false}]
[null,746020635,"Tales of Robin Hood (CA17)",{"$f":"COUNTIF(Scans!B:B,'Book Shark C'!B24)>0","v":false},{"$f":"COUNTIF(Scans!B:B,'Book Shark C'!A24)>0","v":false}]
[null,439898528,"The Aesop for Children (CA10)",{"$f":"COUNTIF(Scans!B:B,'Book Shark C'!B25)>0","v":false},{"$f":"COUNTIF(Scans!B:B,'Book Shark C'!A25)>0","v":false}]
[null,374404321,"The Apprentice (CA09)",{"$f":"COUNTIF(Scans!B:B,'Book Shark C'!B26)>0","v":false},{"$f":"COUNTIF(Scans!B:B,'Book Shark C'!A26)>0","v":false}]
[null,312380038,"The Cricket in Times Square (CA14)",{"$f":"COUNTIF(Scans!B:B,'Book Shark C'!B27)>0","v":false},{"$f":"COUNTIF(Scans!B:B,'Book Shark C'!A27)>0","v":false}]
[null,440402832,"The Door in the Wall (CA03)",{"$f":"COUNTIF(Scans!B:B,'Book Shark C'!B28)>0","v":false},{"$f":"COUNTIF(Scans!B:B,'Book Shark C'!A28)>0","v":false}]
[null,688124992,"The Little Riders (CA08)",{"$f":"COUNTIF(Scans!B:B,'Book Shark C'!B29)>0","v":false},{"$f":"COUNTIF(Scans!B:B,'Book Shark C'!A29)>0","v":false}]
[null,394895983,"The Minstrel in the Tower (CA19)",{"$f":"COUNTIF(Scans!B:B,'Book Shark C'!B30)>0","v":false},{"$f":"COUNTIF(Scans!B:B,'Book Shark C'!A30)>0","v":false}]
[null,689851863,"The School Story (CA18)",{"$f":"COUNTIF(Scans!B:B,'Book Shark C'!B31)>0","v":false},{"$f":"COUNTIF(Scans!B:B,'Book Shark C'!A31)>0","v":false}]
[null,140320970,"The Twenty-One Balloons (CA02)",{"$f":"COUNTIF(Scans!B:B,'Book Shark C'!B32)>0","v":false},{"$f":"COUNTIF(Scans!B:B,'Book Shark C'!A32)>0","v":false}]
[null,"188784029X","White Stallion of Lipizza (CA12)",{"$f":"COUNTIF(Scans!B:B,'Book Shark C'!B33)>0","v":false},{"$f":"COUNTIF(Scans!B:B,'Book Shark C'!A33)>0","v":false}]
["Level 2 Regular Readers"]
[null,64441555,"Amelia Bedelia (2R23)",{"$f":"COUNTIF(Scans!B:B,'Book Shark C'!B35)>0","v":false},{"$f":"COUNTIF(Scans!B:B,'Book Shark C'!A35)>0","v":false}]
[null,64441342,"Clara and the Bookwagon (3R30)",{"$f":"COUNTIF(Scans!B:B,'Book Shark C'!B36)>0","v":false},{"$f":"COUNTIF(Scans!B:B,'Book Shark C'!A36)>0","v":false}]
[null,64440311,"Daniel's Duck (2R18)",{"$f":"COUNTIF(Scans!B:B,'Book Shark C'!B37)>0","v":false},{"$f":"COUNTIF(Scans!B:B,'Book Shark C'!A37)>0","v":false}]
[null,64440591,"Frog and Toad All Year (2R22)",{"$f":"COUNTIF(Scans!B:B,'Book Shark C'!B38)>0","v":false},{"$f":"COUNTIF(Scans!B:B,'Book Shark C'!A38)>0","v":false}]
[null,64440206,"Frog and Toad are Friends (2R02)",{"$f":"COUNTIF(Scans!B:B,'Book Shark C'!B39)>0","v":false},{"$f":"COUNTIF(Scans!B:B,'Book Shark C'!A39)>0","v":false}]
[null,64440214,"Frog and Toad Together (2R03)",{"$f":"COUNTIF(Scans!B:B,'Book Shark C'!B40)>0","v":false},{"$f":"COUNTIF(Scans!B:B,'Book Shark C'!A40)>0","v":false}]
[null,"006444144X","Greg's Microscope (2R21)",{"$f":"COUNTIF(Scans!B:B,'Book Shark C'!B41)>0","v":false},{"$f":"COUNTIF(Scans!B:B,'Book Shark C'!A41)>0","v":false}]
[null,64440400,"Hill of Fire (2R09)",{"$f":"COUNTIF(Scans!B:B,'Book Shark C'!B42)>0","v":false},{"$f":"COUNTIF(Scans!B:B,'Book Shark C'!A42)>0","v":false}]
[null,64440133,"Mouse Tales (2R16)",{"$f":"COUNTIF(Scans!B:B,'Book Shark C'!B43)>0","v":false},{"$f":"COUNTIF(Scans!B:B,'Book Shark C'!A43)>0","v":false}]
[null,"044046126X","Nate the Great (2R19)",{"$f":"COUNTIF(Scans!B:B,'Book Shark C'!B44)>0","v":false},{"$f":"COUNTIF(Scans!B:B,'Book Shark C'!A44)>0","v":false}]
[null,64440346,"Owl at Home (2R04)",{"$f":"COUNTIF(Scans!B:B,'Book Shark C'!B45)>0","v":false},{"$f":"COUNTIF(Scans!B:B,'Book Shark C'!A45)>0","v":false}]
[null,394888669,"Pompeii: Buried Alive! (2R11)",{"$f":"COUNTIF(Scans!B:B,'Book Shark C'!B46)>0","v":false},{"$f":"COUNTIF(Scans!B:B,'Book Shark C'!A46)>0","v":false}]
[null,60513187,"Prairie School (3R33)",{"$f":"COUNTIF(Scans!B:B,'Book Shark C'!B47)>0","v":false},{"$f":"COUNTIF(Scans!B:B,'Book Shark C'!A47)>0","v":false}]
[null,"3R52","Riding the Pony Express (3R49)",{"$f":"COUNTIF(Scans!B:B,'Book Shark C'!B48)>0","v":false},{"$f":"COUNTIF(Scans!B:B,'Book Shark C'!A48)>0","v":false}]
[null,64440532,"The Big Balloon Race (2R15)",{"$f":"COUNTIF(Scans!B:B,'Book Shark C'!B49)>0","v":false},{"$f":"COUNTIF(Scans!B:B,'Book Shark C'!A49)>0","v":false}]
[null,64440389,"The Fire Cat (2R20)",{"$f":"COUNTIF(Scans!B:B,'Book Shark C'!B50)>0","v":false},{"$f":"COUNTIF(Scans!B:B,'Book Shark C'!A50)>0","v":false}]
[null,64441008,"The Long Way to a New Land (3R31)",{"$f":"COUNTIF(Scans!B:B,'Book Shark C'!B51)>0","v":false},{"$f":"COUNTIF(Scans!B:B,'Book Shark C'!A51)>0","v":false}]
[null,64441989,"The Long Way Westward (3R32)",{"$f":"COUNTIF(Scans!B:B,'Book Shark C'!B52)>0","v":false},{"$f":"COUNTIF(Scans!B:B,'Book Shark C'!A52)>0","v":false}]
[null,64421325,"The Sword in the Tree (2R27)",{"$f":"COUNTIF(Scans!B:B,'Book Shark C'!B53)>0","v":false},{"$f":"COUNTIF(Scans!B:B,'Book Shark C'!A53)>0","v":false}]
[null,689871066,"Third Grade Detectives #1 and #2 (3R35)",{"$f":"COUNTIF(Scans!B:B,'Book Shark C'!B54)>0","v":false},{"$f":"COUNTIF(Scans!B:B,'Book Shark C'!A54)>0","v":false}]
[null,394886690,"Titanic: Lost and Found (2R12)",{"$f":"COUNTIF(Scans!B:B,'Book Shark C'!B55)>0","v":false},{"$f":"COUNTIF(Scans!B:B,'Book Shark C'!A55)>0","v":false}]
[null,64440524,"Wagon Wheels (2R14)",{"$f":"COUNTIF(Scans!B:B,'Book Shark C'!B56)>0","v":false},{"$f":"COUNTIF(Scans!B:B,'Book Shark C'!A56)>0","v":false}]
["Required Rescources"]
[null,null,"D-Ring 3-inch Binder with Tabs (BK50)",{"$f":"COUNTIF(Scans!B:B,'Book Shark C'!B58)>0","v":false},{"$f":"COUNTIF(Scans!B:B,'Book Shark C'!A58)>0","v":false}]
[null,null,"Markable Map (MAP1)",{"$f":"COUNTIF(Scans!B:B,'Book Shark C'!B59)>0","v":false},{"$f":"COUNTIF(Scans!B:B,'Book Shark C'!A59)>0","v":false}]
[null,null,"Markable Map Markers (MAP2)",{"$f":"COUNTIF(Scans!B:B,'Book Shark C'!B60)>0","v":false},{"$f":"COUNTIF(Scans!B:B,'Book Shark C'!A60)>0","v":false}]
[null,null,"The Timeline Book (RR120)",{"$f":"COUNTIF(Scans!B:B,'Book Shark C'!B61)>0","v":false},{"$f":"COUNTIF(Scans!B:B,'Book Shark C'!A61)>0","v":false}]
[null,null,"The Usborne Book of World History (CH02)",{"$f":"COUNTIF(Scans!B:B,'Book Shark C'!B62)>0","v":false},{"$f":"COUNTIF(Scans!B:B,'Book Shark C'!A62)>0","v":false}]
[null,null,"The Usborne Time Traveler (BH01)",{"$f":"COUNTIF(Scans!B:B,'Book Shark C'!B63)>0","v":false},{"$f":"COUNTIF(Scans!B:B,'Book Shark C'!A63)>0","v":false}]
["Language Arts"]
[null,null,"Language Arts 2 Instructor's Guide (2LB)",{"$f":"COUNTIF(Scans!B:B,'Book Shark C'!B65)>0","v":false},{"$f":"COUNTIF(Scans!B:B,'Book Shark C'!A65)>0","v":false}]
["Science"]
[null,null,"Discover & Do Level 2 DVD (CS05)",{"$f":"COUNTIF(Scans!B:B,'Book Shark C'!B67)>0","v":false},{"$f":"COUNTIF(Scans!B:B,'Book Shark C'!A67)>0","v":false}]
[null,null,"Marie Curie's Search for Radium (CS09)",{"$f":"COUNTIF(Scans!B:B,'Book Shark C'!B68)>0","v":false},{"$f":"COUNTIF(Scans!B:B,'Book Shark C'!A68)>0","v":false}]
[null,null,"Science Activities, Volume 3 (CS08)",{"$f":"COUNTIF(Scans!B:B,'Book Shark C'!B69)>0","v":false},{"$f":"COUNTIF(Scans!B:B,'Book Shark C'!A69)>0","v":false}]
[null,null,"Science C Instructor's Guide │Ages 7-9 (CSB)",{"$f":"COUNTIF(Scans!B:B,'Book Shark C'!B70)>0","v":false},{"$f":"COUNTIF(Scans!B:B,'Book Shark C'!A70)>0","v":false}]
[null,null,"Science Supplies Kit C (CSK)",{"$f":"COUNTIF(Scans!B:B,'Book Shark C'!B71)>0","v":false},{"$f":"COUNTIF(Scans!B:B,'Book Shark C'!A71)>0","v":false}]
[null,null,"The Magic School Bus Inside the Earth (CS06)",{"$f":"COUNTIF(Scans!B:B,'Book Shark C'!B72)>0","v":false},{"$f":"COUNTIF(Scans!B:B,'Book Shark C'!A72)>0","v":false}]
[null,null,"The Usborne Book of Knowledge (CS03)",{"$f":"COUNTIF(Scans!B:B,'Book Shark C'!B73)>0","v":false},{"$f":"COUNTIF(Scans!B:B,'Book Shark C'!A73)>0","v":false}]
[null,null,"Weather (CS01)",{"$f":"COUNTIF(Scans!B:B,'Book Shark C'!B74)>0","v":false},{"$f":"COUNTIF(Scans!B:B,'Book Shark C'!A74)>0","v":false}]
[null,null,"What's Physics All About? (CS11)",{"$f":"COUNTIF(Scans!B:B,'Book Shark C'!B75)>0","v":false},{"$f":"COUNTIF(Scans!B:B,'Book Shark C'!A75)>0","v":false}]
["Math"]
[null,null,"Math-U-See Beta Instruction Pack (2M15)",{"$f":"COUNTIF(Scans!B:B,'Book Shark C'!B77)>0","v":false},{"$f":"COUNTIF(Scans!B:B,'Book Shark C'!A77)>0","v":false}]
[null,null,"Math-U-See Beta Student Pack (2M16)",{"$f":"COUNTIF(Scans!B:B,'Book Shark C'!B78)>0","v":false},{"$f":"COUNTIF(Scans!B:B,'Book Shark C'!A78)>0","v":false}]
[null,null,"Math-U-See Integer Block Kit (RM15)",{"$f":"COUNTIF(Scans!B:B,'Book Shark C'!B79)>0","v":false},{"$f":"COUNTIF(Scans!B:B,'Book Shark C'!A79)>0","v":false}]
["Handwriting"]
[null,null,"Handwriting Without Tears: Printing Power (2L172)",{"$f":"COUNTIF(Scans!B:B,'Book Shark C'!B81)>0","v":false},{"$f":"COUNTIF(Scans!B:B,'Book Shark C'!A81)>0","v":false}]
[null,null,"Lined Paper for Handwriting Without Tears Level 2 and 3 (2L174)",{"$f":"COUNTIF(Scans!B:B,'Book Shark C'!B82)>0","v":false},{"$f":"COUNTIF(Scans!B:B,'Book Shark C'!A82)>0","v":false}]

{"sheet":"Book Shark D","index":5,"n_rows":58,"n_cols":5,"rows_kept":58,"cut":false,"hidden":false,"merged":[]}
[]
["Book Shark D"]
[null,"ISBN Number","Title","Accounted for","Alternate Accounted for"]
["History D"]
[null,null,"American History: A Visual Encyclopedia (DH21)",{"$f":"COUNTIF(Scans!B:B,'Book Shark D'!B5)>0","v":false},{"$f":"COUNTIF(Scans!B:B,'Book Shark D'!A5)>0","v":false}]
[null,1935570188,"Beginner's American History (DH25)",{"$f":"COUNTIF(Scans!B:B,'Book Shark D'!B6)>0","v":false},{"$f":"COUNTIF(Scans!B:B,'Book Shark D'!A6)>0","v":false}]
[null,null,"History D Instructor's Guide │Ages 8-11 (DHB)",{"$f":"COUNTIF(Scans!B:B,'Book Shark D'!B7)>0","v":false},{"$f":"COUNTIF(Scans!B:B,'Book Shark D'!A7)>0","v":false}]
[null,590451596,"If You Were There When They Signed the Constitution (DH03)",{"$f":"COUNTIF(Scans!B:B,'Book Shark D'!B8)>0","v":false},{"$f":"COUNTIF(Scans!B:B,'Book Shark D'!A8)>0","v":false}]
[null,394837029,"North American Indians (DH12)",{"$f":"COUNTIF(Scans!B:B,'Book Shark D'!B9)>0","v":false},{"$f":"COUNTIF(Scans!B:B,'Book Shark D'!A9)>0","v":false}]
[null,590462067,"Pedro's Journal (DH08)",{"$f":"COUNTIF(Scans!B:B,'Book Shark D'!B10)>0","v":false},{"$f":"COUNTIF(Scans!B:B,'Book Shark D'!A10)>0","v":false}]
[null,1935570137,"The Landmark History of the American People, Volume 1 (DH10)",{"$f":"COUNTIF(Scans!B:B,'Book Shark D'!B11)>0","v":false},{"$f":"COUNTIF(Scans!B:B,'Book Shark D'!A11)>0","v":false}]
[null,1887840397,"The Lewis & Clark Expedition (DH14)",{"$f":"COUNTIF(Scans!B:B,'Book Shark D'!B12)>0","v":false},{"$f":"COUNTIF(Scans!B:B,'Book Shark D'!A12)>0","v":false}]
[null,null,"Timeline Figures - 3 (DHB1)",{"$f":"COUNTIF(Scans!B:B,'Book Shark D'!B13)>0","v":false},{"$f":"COUNTIF(Scans!B:B,'Book Shark D'!A13)>0","v":false}]
["Read-Alouds D"]
[null,618250743,"Carry On, Mr. Bowditch (DA06)",{"$f":"COUNTIF(Scans!B:B,'Book Shark D'!B15)>0","v":false},{"$f":"COUNTIF(Scans!B:B,'Book Shark D'!A15)>0","v":false}]
[null,1579122825,"Child's Introduction to Poetry (DA13)",{"$f":"COUNTIF(Scans!B:B,'Book Shark D'!B16)>0","v":false},{"$f":"COUNTIF(Scans!B:B,'Book Shark D'!A16)>0","v":false}]
[null,547614322,"Johnny Tremain (DA04)",{"$f":"COUNTIF(Scans!B:B,'Book Shark D'!B17)>0","v":false},{"$f":"COUNTIF(Scans!B:B,'Book Shark D'!A17)>0","v":false}]
[null,1416927859,"Justin Morgan Had a Horse (DA09)",{"$f":"COUNTIF(Scans!B:B,'Book Shark D'!B18)>0","v":false},{"$f":"COUNTIF(Scans!B:B,'Book Shark D'!A18)>0","v":false}]
[null,1442494662,"Secret of the Sealed Room (DA16)",{"$f":"COUNTIF(Scans!B:B,'Book Shark D'!B19)>0","v":false},{"$f":"COUNTIF(Scans!B:B,'Book Shark D'!A19)>0","v":false}]
[null,802777031,"Swift Rivers (DA12)",{"$f":"COUNTIF(Scans!B:B,'Book Shark D'!B20)>0","v":false},{"$f":"COUNTIF(Scans!B:B,'Book Shark D'!A20)>0","v":false}]
[null,547577117,"The Sign of the Beaver (DA02)",{"$f":"COUNTIF(Scans!B:B,'Book Shark D'!B21)>0","v":false},{"$f":"COUNTIF(Scans!B:B,'Book Shark D'!A21)>0","v":false}]
[null,547550294,"The Witch of Blackbird Pond (DA03)",{"$f":"COUNTIF(Scans!B:B,'Book Shark D'!B22)>0","v":false},{"$f":"COUNTIF(Scans!B:B,'Book Shark D'!A22)>0","v":false}]
[null,679848045,"Toliver's Secret (DA05)",{"$f":"COUNTIF(Scans!B:B,'Book Shark D'!B23)>0","v":false},{"$f":"COUNTIF(Scans!B:B,'Book Shark D'!A23)>0","v":false}]
[null,1887840222,"Walk the World's Rim (DA08)",{"$f":"COUNTIF(Scans!B:B,'Book Shark D'!B24)>0","v":false},{"$f":"COUNTIF(Scans!B:B,'Book Shark D'!A24)>0","v":false}]
[null,152052062,"Winter Danger (DA18)",{"$f":"COUNTIF(Scans!B:B,'Book Shark D'!B25)>0","v":false},{"$f":"COUNTIF(Scans!B:B,'Book Shark D'!A25)>0","v":false}]
["Level D Regular Readers"]
[null,64403335,"A Lion to Guard Us (DR13)",{"$f":"COUNTIF(Scans!B:B,'Book Shark D'!B27)>0","v":false},{"$f":"COUNTIF(Scans!B:B,'Book Shark D'!A27)>0","v":false}]
[null,375803971,"Meet George Washington (DR05)",{"$f":"COUNTIF(Scans!B:B,'Book Shark D'!B28)>0","v":false},{"$f":"COUNTIF(Scans!B:B,'Book Shark D'!A28)>0","v":false}]
[null,375812113,"Meet Thomas Jefferson (DR03)",{"$f":"COUNTIF(Scans!B:B,'Book Shark D'!B29)>0","v":false},{"$f":"COUNTIF(Scans!B:B,'Book Shark D'!A29)>0","v":false}]
[null,1880114054,"Om-kas-toe (DR16)",{"$f":"COUNTIF(Scans!B:B,'Book Shark D'!B30)>0","v":false},{"$f":"COUNTIF(Scans!B:B,'Book Shark D'!A30)>0","v":false}]
[null,698119568,"Phoebe the Spy (DR04)",{"$f":"COUNTIF(Scans!B:B,'Book Shark D'!B31)>0","v":false},{"$f":"COUNTIF(Scans!B:B,'Book Shark D'!A31)>0","v":false}]
[null,"193557017X","Pocahontas and the Strangers (DR01)",{"$f":"COUNTIF(Scans!B:B,'Book Shark D'!B32)>0","v":false},{"$f":"COUNTIF(Scans!B:B,'Book Shark D'!A32)>0","v":false}]
[null,null,"Robert Fulton, Boy Craftsman (DR06)",{"$f":"COUNTIF(Scans!B:B,'Book Shark D'!B33)>0","v":false},{"$f":"COUNTIF(Scans!B:B,'Book Shark D'!A33)>0","v":false}]
[null,62399527,"Sarah, Plain and Tall (DR07)",{"$f":"COUNTIF(Scans!B:B,'Book Shark D'!B34)>0","v":false},{"$f":"COUNTIF(Scans!B:B,'Book Shark D'!A34)>0","v":false}]
[null,1935570277,"Squanto, Friend of the Pilgrims (DR10)",{"$f":"COUNTIF(Scans!B:B,'Book Shark D'!B35)>0","v":false},{"$f":"COUNTIF(Scans!B:B,'Book Shark D'!A35)>0","v":false}]
[null,689716044,"The Bears on Hemlock Mountain (DR11)",{"$f":"COUNTIF(Scans!B:B,'Book Shark D'!B36)>0","v":false},{"$f":"COUNTIF(Scans!B:B,'Book Shark D'!A36)>0","v":false}]
[null,698119363,"The Cabin Faced West (DR09)",{"$f":"COUNTIF(Scans!B:B,'Book Shark D'!B37)>0","v":false},{"$f":"COUNTIF(Scans!B:B,'Book Shark D'!A37)>0","v":false}]
[null,689715404,"The Courage of Sarah Noble (DR08)",{"$f":"COUNTIF(Scans!B:B,'Book Shark D'!B38)>0","v":false},{"$f":"COUNTIF(Scans!B:B,'Book Shark D'!A38)>0","v":false}]
[null,698116801,"The Matchlock Gun (DR02)",{"$f":"COUNTIF(Scans!B:B,'Book Shark D'!B39)>0","v":false},{"$f":"COUNTIF(Scans!B:B,'Book Shark D'!A39)>0","v":false}]
["Science"]
[null,null,"Discover & Do Level 3 DVD (DS06)",{"$f":"COUNTIF(Scans!B:B,'Book Shark D'!B41)>0","v":false},{"$f":"COUNTIF(Scans!B:B,'Book Shark D'!A41)>0","v":false}]
[null,876146159,"Listening to Crickets (DS11)",{"$f":"COUNTIF(Scans!B:B,'Book Shark D'!B42)>0","v":false},{"$f":"COUNTIF(Scans!B:B,'Book Shark D'!A42)>0","v":false}]
[null,794517382,"Mysteries and Marvels of Nature (DS05)",{"$f":"COUNTIF(Scans!B:B,'Book Shark D'!B43)>0","v":false},{"$f":"COUNTIF(Scans!B:B,'Book Shark D'!A43)>0","v":false}]
[null,974914924,"Real Science 4 Kids: Biology, Level 1 (DS01)",{"$f":"COUNTIF(Scans!B:B,'Book Shark D'!B44)>0","v":false},{"$f":"COUNTIF(Scans!B:B,'Book Shark D'!A44)>0","v":false}]
[null,null,"Science D Instructor's Guide │Ages 8-11 (DSB)",{"$f":"COUNTIF(Scans!B:B,'Book Shark D'!B45)>0","v":false},{"$f":"COUNTIF(Scans!B:B,'Book Shark D'!A45)>0","v":false}]
[null,null,"Science Supplies Kit D (DSK)",{"$f":"COUNTIF(Scans!B:B,'Book Shark D'!B46)>0","v":false},{"$f":"COUNTIF(Scans!B:B,'Book Shark D'!A46)>0","v":false}]
[null,590414275,"The Magic School Bus Inside the Human Body (DS04)",{"$f":"COUNTIF(Scans!B:B,'Book Shark D'!B47)>0","v":false},{"$f":"COUNTIF(Scans!B:B,'Book Shark D'!A47)>0","v":false}]
[null,794530486,"The Usborne First Encyclopedia of Seas and Oceans (DS02)",{"$f":"COUNTIF(Scans!B:B,'Book Shark D'!B48)>0","v":false},{"$f":"COUNTIF(Scans!B:B,'Book Shark D'!A48)>0","v":false}]
[null,null,"TOPS 38-Green Thumbs: Radishes (DS09)",{"$f":"COUNTIF(Scans!B:B,'Book Shark D'!B49)>0","v":false},{"$f":"COUNTIF(Scans!B:B,'Book Shark D'!A49)>0","v":false}]
[null,null,"TOPS 39-Green Thumbs: Corn & Beans (DS10)",{"$f":"COUNTIF(Scans!B:B,'Book Shark D'!B50)>0","v":false},{"$f":"COUNTIF(Scans!B:B,'Book Shark D'!A50)>0","v":false}]
[null,746030525,"Usborne Science Encyclopedia (DS03)",{"$f":"COUNTIF(Scans!B:B,'Book Shark D'!B51)>0","v":false},{"$f":"COUNTIF(Scans!B:B,'Book Shark D'!A51)>0","v":false}]
["Math"]
[null,null,"Math-U-See Gamma Student Pack (3M16)",{"$f":"COUNTIF(Scans!B:B,'Book Shark D'!B53)>0","v":false},{"$f":"COUNTIF(Scans!B:B,'Book Shark D'!A53)>0","v":false}]
[null,null,"Math-U-See Integer Block Kit (RM15)",{"$f":"COUNTIF(Scans!B:B,'Book Shark D'!B54)>0","v":false},{"$f":"COUNTIF(Scans!B:B,'Book Shark D'!A54)>0","v":false}]
["Handwriting"]
[null,null,"Lined Paper for Handwriting Without Tears Level 2 and 3 (2L174)",{"$f":"COUNTIF(Scans!B:B,'Book Shark D'!B56)>0","v":false},{"$f":"COUNTIF(Scans!B:B,'Book Shark D'!A56)>0","v":false}]
[null,null,"Handwriting Without Tears: Cursive Handwriting (3L192)",{"$f":"COUNTIF(Scans!B:B,'Book Shark D'!B57)>0","v":false},{"$f":"COUNTIF(Scans!B:B,'Book Shark D'!A57)>0","v":false}]
[null,null,"Handwriting Without Tears: Cursive Alphabet Desk Strips (3L194)",{"$f":"COUNTIF(Scans!B:B,'Book Shark D'!B58)>0","v":false},{"$f":"COUNTIF(Scans!B:B,'Book Shark D'!A58)>0","v":false}]

{"sheet":"Book Shark E","index":6,"n_rows":68,"n_cols":5,"rows_kept":68,"cut":false,"hidden":false,"merged":[]}
["Book Shark E"]
[null,"ISBN Number","Title","Accounted for","Alternate Accounted for"]
["History E"]
[null,null,"History E Instructor's Guide │Ages 9-12 (EHB)",{"$f":"COUNTIF(Scans!B:B,'Book Shark E'!B4)>0","v":false},{"$f":"COUNTIF(Scans!B:B,'Book Shark E'!A4)>0","v":false}]
[null,1935570145,"The Landmark History of the American People, Volume II (EH12)",{"$f":"COUNTIF(Scans!B:B,'Book Shark E'!B5)>0","v":false},{"$f":"COUNTIF(Scans!B:B,'Book Shark E'!A5)>0","v":false}]
[null,794519717,"The World Wars (EH05)",{"$f":"COUNTIF(Scans!B:B,'Book Shark E'!B6)>0","v":false},{"$f":"COUNTIF(Scans!B:B,'Book Shark E'!A6)>0","v":false}]
[null,null,"Timeline Figures - 4 (EHB1)",{"$f":"COUNTIF(Scans!B:B,'Book Shark E'!B7)>0","v":false},{"$f":"COUNTIF(Scans!B:B,'Book Shark E'!A7)>0","v":false}]
[null,843112794,"Wee Sing America - CD (EH04)",{"$f":"COUNTIF(Scans!B:B,'Book Shark E'!B8)>0","v":false},{"$f":"COUNTIF(Scans!B:B,'Book Shark E'!A8)>0","v":false}]
[null,1935570242,"William Wilberforce (EH06)",{"$f":"COUNTIF(Scans!B:B,'Book Shark E'!B9)>0","v":false},{"$f":"COUNTIF(Scans!B:B,'Book Shark E'!A9)>0","v":false}]
["Read-Alouds E"]
[null,440415292,"A Letter to Mrs. Roosevelt (EH01)",{"$f":"COUNTIF(Scans!B:B,'Book Shark E'!B11)>0","v":false},{"$f":"COUNTIF(Scans!B:B,'Book Shark E'!A11)>0","v":false}]
[null,425182789,"Across Five Aprils (EA03)",{"$f":"COUNTIF(Scans!B:B,'Book Shark E'!B12)>0","v":false},{"$f":"COUNTIF(Scans!B:B,'Book Shark E'!A12)>0","v":false}]
[null,1416940286,"Caddie Woodlawn (EA05)",{"$f":"COUNTIF(Scans!B:B,'Book Shark E'!B13)>0","v":false},{"$f":"COUNTIF(Scans!B:B,'Book Shark E'!A13)>0","v":false}]
[null,689711816,"From the Mixed-Up Files of Mrs. Basil E. Frankweiler (EA14)",{"$f":"COUNTIF(Scans!B:B,'Book Shark E'!B14)>0","v":false},{"$f":"COUNTIF(Scans!B:B,'Book Shark E'!A14)>0","v":false}]
[null,64401758,"In the Year of the Boar and Jackie Robinson (ER10)",{"$f":"COUNTIF(Scans!B:B,'Book Shark E'!B15)>0","v":false},{"$f":"COUNTIF(Scans!B:B,'Book Shark E'!A15)>0","v":false}]
[null,803281781,"Little Britches (EA08)",{"$f":"COUNTIF(Scans!B:B,'Book Shark E'!B16)>0","v":false},{"$f":"COUNTIF(Scans!B:B,'Book Shark E'!A16)>0","v":false}]
[null,152047182,"Miracles on Maple Hill (EA07)",{"$f":"COUNTIF(Scans!B:B,'Book Shark E'!B17)>0","v":false},{"$f":"COUNTIF(Scans!B:B,'Book Shark E'!A17)>0","v":false}]
[null,140321705,"Moccasin Trail (EA11)",{"$f":"COUNTIF(Scans!B:B,'Book Shark E'!B18)>0","v":false},{"$f":"COUNTIF(Scans!B:B,'Book Shark E'!A18)>0","v":false}]
[null,"019514578X","Oxford Illustrated Book of American Children's Poems (EA04)",{"$f":"COUNTIF(Scans!B:B,'Book Shark E'!B19)>0","v":false},{"$f":"COUNTIF(Scans!B:B,'Book Shark E'!A19)>0","v":false}]
[null,140384510,"Roll of Thunder, Hear My Cry (EA06)",{"$f":"COUNTIF(Scans!B:B,'Book Shark E'!B20)>0","v":false},{"$f":"COUNTIF(Scans!B:B,'Book Shark E'!A20)>0","v":false}]
[null,374427984,"The Great Turkey Walk (EA02)",{"$f":"COUNTIF(Scans!B:B,'Book Shark E'!B21)>0","v":false},{"$f":"COUNTIF(Scans!B:B,'Book Shark E'!A21)>0","v":false}]
[null,802777058,"The Great Wheel (EA10)",{"$f":"COUNTIF(Scans!B:B,'Book Shark E'!B22)>0","v":false},{"$f":"COUNTIF(Scans!B:B,'Book Shark E'!A22)>0","v":false}]
["Level E Reader"]
[null,440400597,"All-of-a-Kind Family (ER08)",{"$f":"COUNTIF(Scans!B:B,'Book Shark E'!B24)>0","v":false},{"$f":"COUNTIF(Scans!B:B,'Book Shark E'!A24)>0","v":false}]
[null,316286125,"By the Great Horn Spoon (ER02)",{"$f":"COUNTIF(Scans!B:B,'Book Shark E'!B25)>0","v":false},{"$f":"COUNTIF(Scans!B:B,'Book Shark E'!A25)>0","v":false}]
[null,590436287,"Freedom Train (ER03)",{"$f":"COUNTIF(Scans!B:B,'Book Shark E'!B26)>0","v":false},{"$f":"COUNTIF(Scans!B:B,'Book Shark E'!A26)>0","v":false}]
[null,152022724,"Gone Away Lake (ER12)",{"$f":"COUNTIF(Scans!B:B,'Book Shark E'!B27)>0","v":false},{"$f":"COUNTIF(Scans!B:B,'Book Shark E'!A27)>0","v":false}]
[null,590424041,"Helen Keller (ER07)",{"$f":"COUNTIF(Scans!B:B,'Book Shark E'!B28)>0","v":false},{"$f":"COUNTIF(Scans!B:B,'Book Shark E'!A28)>0","v":false}]
[null,"188784001X","Hero Over Here (ER19)",{"$f":"COUNTIF(Scans!B:B,'Book Shark E'!B29)>0","v":false},{"$f":"COUNTIF(Scans!B:B,'Book Shark E'!A29)>0","v":false}]
[null,553494651,"Lawn Boy (DA14)",{"$f":"COUNTIF(Scans!B:B,'Book Shark E'!B30)>0","v":false},{"$f":"COUNTIF(Scans!B:B,'Book Shark E'!A30)>0","v":false}]
[null,64403823,"Old Yeller (ER06)",{"$f":"COUNTIF(Scans!B:B,'Book Shark E'!B31)>0","v":false},{"$f":"COUNTIF(Scans!B:B,'Book Shark E'!A31)>0","v":false}]
[null,152047255,"Plain Girl (ER11)",{"$f":"COUNTIF(Scans!B:B,'Book Shark E'!B32)>0","v":false},{"$f":"COUNTIF(Scans!B:B,'Book Shark E'!A32)>0","v":false}]
[null,689826966,"Shades of Gray (ER04)",{"$f":"COUNTIF(Scans!B:B,'Book Shark E'!B33)>0","v":false},{"$f":"COUNTIF(Scans!B:B,'Book Shark E'!A33)>0","v":false}]
[null,547406320,"Sing Down the Moon (ER18)",{"$f":"COUNTIF(Scans!B:B,'Book Shark E'!B34)>0","v":false},{"$f":"COUNTIF(Scans!B:B,'Book Shark E'!A34)>0","v":false}]
[null,152052046,"The Perilous Road (ER01)",{"$f":"COUNTIF(Scans!B:B,'Book Shark E'!B35)>0","v":false},{"$f":"COUNTIF(Scans!B:B,'Book Shark E'!A35)>0","v":false}]
[null,1887840109,"The Seventeenth Swap (ER13)",{"$f":"COUNTIF(Scans!B:B,'Book Shark E'!B36)>0","v":false},{"$f":"COUNTIF(Scans!B:B,'Book Shark E'!A36)>0","v":false}]
[null,590424033,"The Story of Thomas Alva Edison (ER20)",{"$f":"COUNTIF(Scans!B:B,'Book Shark E'!B37)>0","v":false},{"$f":"COUNTIF(Scans!B:B,'Book Shark E'!A37)>0","v":false}]
[null,394847008,"The Wright Brothers (ER15)",{"$f":"COUNTIF(Scans!B:B,'Book Shark E'!B38)>0","v":false},{"$f":"COUNTIF(Scans!B:B,'Book Shark E'!A38)>0","v":false}]
[null,"031238002X","Thimble Summer (ER09)",{"$f":"COUNTIF(Scans!B:B,'Book Shark E'!B39)>0","v":false},{"$f":"COUNTIF(Scans!B:B,'Book Shark E'!A39)>0","v":false}]
[null,688166768,"Turn Homeward, Hannalee (ER05)",{"$f":"COUNTIF(Scans!B:B,'Book Shark E'!B40)>0","v":false},{"$f":"COUNTIF(Scans!B:B,'Book Shark E'!A40)>0","v":false}]
["Required Resources"]
[null,null,"D-Ring 3-inch Binder with Tabs (BK50)",{"$f":"COUNTIF(Scans!B:B,'Book Shark E'!B42)>0","v":false},{"$f":"COUNTIF(Scans!B:B,'Book Shark E'!A42)>0","v":false}]
[null,null,"Markable Map (MAP1)",{"$f":"COUNTIF(Scans!B:B,'Book Shark E'!B43)>0","v":false},{"$f":"COUNTIF(Scans!B:B,'Book Shark E'!A43)>0","v":false}]
[null,null,"Markable Map Markers (MAP2)",{"$f":"COUNTIF(Scans!B:B,'Book Shark E'!B44)>0","v":false},{"$f":"COUNTIF(Scans!B:B,'Book Shark E'!A44)>0","v":false}]
[null,null,"The Timeline Book (RR120)",{"$f":"COUNTIF(Scans!B:B,'Book Shark E'!B45)>0","v":false},{"$f":"COUNTIF(Scans!B:B,'Book Shark E'!A45)>0","v":false}]
["Language Arts"]
[null,null,"Language Arts E Instructor's Guide (ELB)",{"$f":"COUNTIF(Scans!B:B,'Book Shark E'!B47)>0","v":false},{"$f":"COUNTIF(Scans!B:B,'Book Shark E'!A47)>0","v":false}]
["Science"]
[null,null,"Diary of an Early American Boy (ES03)",{"$f":"COUNTIF(Scans!B:B,'Book Shark E'!B49)>0","v":false},{"$f":"COUNTIF(Scans!B:B,'Book Shark E'!A49)>0","v":false}]
[null,null,"Discover & Do Level 4 DVD (ES06)",{"$f":"COUNTIF(Scans!B:B,'Book Shark E'!B50)>0","v":false},{"$f":"COUNTIF(Scans!B:B,'Book Shark E'!A50)>0","v":false}]
[null,null,"Electricity and Magnetism (ES09)",{"$f":"COUNTIF(Scans!B:B,'Book Shark E'!B51)>0","v":false},{"$f":"COUNTIF(Scans!B:B,'Book Shark E'!A51)>0","v":false}]
[null,null,"Light & Color (ES14)",{"$f":"COUNTIF(Scans!B:B,'Book Shark E'!B52)>0","v":false},{"$f":"COUNTIF(Scans!B:B,'Book Shark E'!A52)>0","v":false}]
[null,null,"Mysteries and Marvels of Science (ES07)",{"$f":"COUNTIF(Scans!B:B,'Book Shark E'!B53)>0","v":false},{"$f":"COUNTIF(Scans!B:B,'Book Shark E'!A53)>0","v":false}]
[null,null,"Science E Instructor's Guide │Ages 9-12 (ESB)",{"$f":"COUNTIF(Scans!B:B,'Book Shark E'!B54)>0","v":false},{"$f":"COUNTIF(Scans!B:B,'Book Shark E'!A54)>0","v":false}]
[null,null,"Science Supplies Kit E (ESK)",{"$f":"COUNTIF(Scans!B:B,'Book Shark E'!B55)>0","v":false},{"$f":"COUNTIF(Scans!B:B,'Book Shark E'!A55)>0","v":false}]
[null,null,"The Usborne Internet-Linked Book of Astronomy and Space (ES01)",{"$f":"COUNTIF(Scans!B:B,'Book Shark E'!B56)>0","v":false},{"$f":"COUNTIF(Scans!B:B,'Book Shark E'!A56)>0","v":false}]
[null,null,"TOPS 32 - Electricity (ES10)",{"$f":"COUNTIF(Scans!B:B,'Book Shark E'!B57)>0","v":false},{"$f":"COUNTIF(Scans!B:B,'Book Shark E'!A57)>0","v":false}]
[null,null,"TOPS 33 - Magnetism (ES11)",{"$f":"COUNTIF(Scans!B:B,'Book Shark E'!B58)>0","v":false},{"$f":"COUNTIF(Scans!B:B,'Book Shark E'!A58)>0","v":false}]
[null,null,"Usborne Complete Book of the Microscope (ES12)",{"$f":"COUNTIF(Scans!B:B,'Book Shark E'!B59)>0","v":false},{"$f":"COUNTIF(Scans!B:B,'Book Shark E'!A59)>0","v":false}]
[null,null,"Who Was Alexander Graham Bell? (ES15)",{"$f":"COUNTIF(Scans!B:B,'Book Shark E'!B60)>0","v":false},{"$f":"COUNTIF(Scans!B:B,'Book Shark E'!A60)>0","v":false}]
["Math"]
[null,null,"Math-U-See Delta Instruction Pack (4M15)",{"$f":"COUNTIF(Scans!B:B,'Book Shark E'!B62)>0","v":false},{"$f":"COUNTIF(Scans!B:B,'Book Shark E'!A62)>0","v":false}]
[null,null,"Math-U-See Delta Student Pack (4M16)",{"$f":"COUNTIF(Scans!B:B,'Book Shark E'!B63)>0","v":false},{"$f":"COUNTIF(Scans!B:B,'Book Shark E'!A63)>0","v":false}]
[null,null,"Math-U-See Integer Block Kit (RM15)",{"$f":"COUNTIF(Scans!B:B,'Book Shark E'!B64)>0","v":false},{"$f":"COUNTIF(Scans!B:B,'Book Shark E'!A64)>0","v":false}]
["Spelling"]
[null,null,"Spelling You See | American Spirit Universal Set (SUS5)",{"$f":"COUNTIF(Scans!B:B,'Book Shark E'!B66)>0","v":false},{"$f":"COUNTIF(Scans!B:B,'Book Shark E'!A66)>0","v":false}]
["Required Resources"]
[null,null,"American History: A Visual Encyclopedia (DH21)",{"$f":"COUNTIF(Scans!B:B,'Book Shark E'!B68)>0","v":false},{"$f":"COUNTIF(Scans!B:B,'Book Shark E'!A68)>0","v":false}]

{"sheet":"Book Shark F","index":7,"n_rows":77,"n_cols":5,"rows_kept":77,"cut":false,"hidden":false,"merged":[]}
[]
["Book Shark F"]
[null,"ISBN Number","Title","Accounted for","Alternate Accounted for"]
["History F"]
[null,null,"China Kit (FH23)",{"$f":"COUNTIF(Scans!B:B,'Book Shark F'!B5)>0","v":false},{"$f":"COUNTIF(Scans!B:B,'Book Shark F'!A5)>0","v":false}]
[null,null,"Eastern Hemisphere Notebook Pages (FCG1)",{"$f":"COUNTIF(Scans!B:B,'Book Shark F'!B6)>0","v":false},{"$f":"COUNTIF(Scans!B:B,'Book Shark F'!A6)>0","v":false}]
[null,1416912835,"Gandhi: Young Nation Builder (FH09)",{"$f":"COUNTIF(Scans!B:B,'Book Shark F'!B7)>0","v":false},{"$f":"COUNTIF(Scans!B:B,'Book Shark F'!A7)>0","v":false}]
[null,null,"History F Instructor's Guide │Ages 10-13 (FHBB)",{"$f":"COUNTIF(Scans!B:B,'Book Shark F'!B8)>0","v":false},{"$f":"COUNTIF(Scans!B:B,'Book Shark F'!A8)>0","v":false}]
[null,698117824,"Homesick (FR14)",{"$f":"COUNTIF(Scans!B:B,'Book Shark F'!B9)>0","v":false},{"$f":"COUNTIF(Scans!B:B,'Book Shark F'!A9)>0","v":false}]
[null,1935570323,"Journey to the Eastern Hemisphere (FH15)",{"$f":"COUNTIF(Scans!B:B,'Book Shark F'!B10)>0","v":false},{"$f":"COUNTIF(Scans!B:B,'Book Shark F'!A10)>0","v":false}]
[null,756638801,"Mother Teresa (FH11)",{"$f":"COUNTIF(Scans!B:B,'Book Shark F'!B11)>0","v":false},{"$f":"COUNTIF(Scans!B:B,'Book Shark F'!A11)>0","v":false}]
[null,545669111,"Nelson Mandela: No Easy Walk to Freedom (FH03)",{"$f":"COUNTIF(Scans!B:B,'Book Shark F'!B12)>0","v":false},{"$f":"COUNTIF(Scans!B:B,'Book Shark F'!A12)>0","v":false}]
[null,440419492,"The Shadows of Ghadames (FH17)",{"$f":"COUNTIF(Scans!B:B,'Book Shark F'!B13)>0","v":false},{"$f":"COUNTIF(Scans!B:B,'Book Shark F'!A13)>0","v":false}]
[null,null,"Timeline Figures - 5 (FHB1)",{"$f":"COUNTIF(Scans!B:B,'Book Shark F'!B14)>0","v":false},{"$f":"COUNTIF(Scans!B:B,'Book Shark F'!A14)>0","v":false}]
[null,942617622,"Whatever Happened to Penny Candy? (FH06)",{"$f":"COUNTIF(Scans!B:B,'Book Shark F'!B15)>0","v":false},{"$f":"COUNTIF(Scans!B:B,'Book Shark F'!A15)>0","v":false}]
["Read-Alouds F"]
[null,547251270,"A Long Walk to Water (FA04)",{"$f":"COUNTIF(Scans!B:B,'Book Shark F'!B17)>0","v":false},{"$f":"COUNTIF(Scans!B:B,'Book Shark F'!A17)>0","v":false}]
[null,1416978763,"A Moment Comes (FA11)",{"$f":"COUNTIF(Scans!B:B,'Book Shark F'!B18)>0","v":false},{"$f":"COUNTIF(Scans!B:B,'Book Shark F'!A18)>0","v":false}]
[null,374403457,"All the Small Poems (FA65)",{"$f":"COUNTIF(Scans!B:B,'Book Shark F'!B19)>0","v":false},{"$f":"COUNTIF(Scans!B:B,'Book Shark F'!A19)>0","v":false}]
[null,140546049,"Ashanti to Zulu: African Traditions (FA05)",{"$f":"COUNTIF(Scans!B:B,'Book Shark F'!B20)>0","v":false},{"$f":"COUNTIF(Scans!B:B,'Book Shark F'!A20)>0","v":false}]
[null,689711077,"Beat the Story Drum, Pum-Pum (FA12)",{"$f":"COUNTIF(Scans!B:B,'Book Shark F'!B21)>0","v":false},{"$f":"COUNTIF(Scans!B:B,'Book Shark F'!A21)>0","v":false}]
[null,689713916,"Call it Courage (FR03)",{"$f":"COUNTIF(Scans!B:B,'Book Shark F'!B22)>0","v":false},{"$f":"COUNTIF(Scans!B:B,'Book Shark F'!A22)>0","v":false}]
[null,140363351,"Daughter of the Mountains (FA66)",{"$f":"COUNTIF(Scans!B:B,'Book Shark F'!B23)>0","v":false},{"$f":"COUNTIF(Scans!B:B,'Book Shark F'!A23)>0","v":false}]
[null,1402240279,"I Rode a Horse of Milk White Jade (FA02)",{"$f":"COUNTIF(Scans!B:B,'Book Shark F'!B24)>0","v":false},{"$f":"COUNTIF(Scans!B:B,'Book Shark F'!A24)>0","v":false}]
[null,64402371,"Journey to Jo'burg (FA57)",{"$f":"COUNTIF(Scans!B:B,'Book Shark F'!B25)>0","v":false},{"$f":"COUNTIF(Scans!B:B,'Book Shark F'!A25)>0","v":false}]
[null,688135633,"Seven Daughters and Seven Sons (FA63)",{"$f":"COUNTIF(Scans!B:B,'Book Shark F'!B26)>0","v":false},{"$f":"COUNTIF(Scans!B:B,'Book Shark F'!A26)>0","v":false}]
[null,689830513,"Shadow Spinner (FA67)",{"$f":"COUNTIF(Scans!B:B,'Book Shark F'!B27)>0","v":false},{"$f":"COUNTIF(Scans!B:B,'Book Shark F'!A27)>0","v":false}]
[null,64471063,"The Horse and His Boy (FA56)",{"$f":"COUNTIF(Scans!B:B,'Book Shark F'!B28)>0","v":false},{"$f":"COUNTIF(Scans!B:B,'Book Shark F'!A28)>0","v":false}]
[null,64401839,"The Land I Lost (FA64)",{"$f":"COUNTIF(Scans!B:B,'Book Shark F'!B29)>0","v":false},{"$f":"COUNTIF(Scans!B:B,'Book Shark F'!A29)>0","v":false}]
[null,64402819,"The Master Puppeteer (FA52)",{"$f":"COUNTIF(Scans!B:B,'Book Shark F'!B30)>0","v":false},{"$f":"COUNTIF(Scans!B:B,'Book Shark F'!A30)>0","v":false}]
[null,316038636,"Where the Mountain Meets the Moon (FA01)",{"$f":"COUNTIF(Scans!B:B,'Book Shark F'!B31)>0","v":false},{"$f":"COUNTIF(Scans!B:B,'Book Shark F'!A31)>0","v":false}]
[null,312380070,"Young Fu of the Upper Yangtze (FA62)",{"$f":"COUNTIF(Scans!B:B,'Book Shark F'!B32)>0","v":false},{"$f":"COUNTIF(Scans!B:B,'Book Shark F'!A32)>0","v":false}]
["Level F Readers"]
[null,545356628,"A Girl Named Disaster (FR10)",{"$f":"COUNTIF(Scans!B:B,'Book Shark F'!B34)>0","v":false},{"$f":"COUNTIF(Scans!B:B,'Book Shark F'!A34)>0","v":false}]
[null,1887840265,"Ali and the Golden Eagle (FR18)",{"$f":"COUNTIF(Scans!B:B,'Book Shark F'!B35)>0","v":false},{"$f":"COUNTIF(Scans!B:B,'Book Shark F'!A35)>0","v":false}]
[null,"014036711X","Around the World in Eighty Days (FR17)",{"$f":"COUNTIF(Scans!B:B,'Book Shark F'!B36)>0","v":false},{"$f":"COUNTIF(Scans!B:B,'Book Shark F'!A36)>0","v":false}]
[null,1575054248,"Born in the Year of Courage (FR23)",{"$f":"COUNTIF(Scans!B:B,'Book Shark F'!B37)>0","v":false},{"$f":"COUNTIF(Scans!B:B,'Book Shark F'!A37)>0","v":false}]
[null,1250034108,"Breaking Stalin's Nose (FR30)",{"$f":"COUNTIF(Scans!B:B,'Book Shark F'!B38)>0","v":false},{"$f":"COUNTIF(Scans!B:B,'Book Shark F'!A38)>0","v":false}]
[null,null,"Fun with Easy Origami (FR252)",{"$f":"COUNTIF(Scans!B:B,'Book Shark F'!B39)>0","v":false},{"$f":"COUNTIF(Scans!B:B,'Book Shark F'!A39)>0","v":false}]
[null,689825234,"Habibi (FR26)",{"$f":"COUNTIF(Scans!B:B,'Book Shark F'!B40)>0","v":false},{"$f":"COUNTIF(Scans!B:B,'Book Shark F'!A40)>0","v":false}]
[null,140341447,"Henry Reed, Inc. (ER22)",{"$f":"COUNTIF(Scans!B:B,'Book Shark F'!B41)>0","v":false},{"$f":"COUNTIF(Scans!B:B,'Book Shark F'!A41)>0","v":false}]
[null,141321628,"Just So Stories (FR09)",{"$f":"COUNTIF(Scans!B:B,'Book Shark F'!B42)>0","v":false},{"$f":"COUNTIF(Scans!B:B,'Book Shark F'!A42)>0","v":false}]
[null,1416927867,"King of the Wind (FR15)",{"$f":"COUNTIF(Scans!B:B,'Book Shark F'!B43)>0","v":false},{"$f":"COUNTIF(Scans!B:B,'Book Shark F'!A43)>0","v":false}]
[null,802774687,"Li Lun, Lad of Courage (FR19)",{"$f":"COUNTIF(Scans!B:B,'Book Shark F'!B44)>0","v":false},{"$f":"COUNTIF(Scans!B:B,'Book Shark F'!A44)>0","v":false}]
[null,1558612785,"Red Sand, Blue Sky (FR21)",{"$f":"COUNTIF(Scans!B:B,'Book Shark F'!B45)>0","v":false},{"$f":"COUNTIF(Scans!B:B,'Book Shark F'!A45)>0","v":false}]
[null,1580893090,"Rickshaw Girl (FR28)",{"$f":"COUNTIF(Scans!B:B,'Book Shark F'!B46)>0","v":false},{"$f":"COUNTIF(Scans!B:B,'Book Shark F'!A46)>0","v":false}]
[null,142401137,"Sadako And The Thousand Paper Cranes (FR251)",{"$f":"COUNTIF(Scans!B:B,'Book Shark F'!B47)>0","v":false},{"$f":"COUNTIF(Scans!B:B,'Book Shark F'!A47)>0","v":false}]
[null,null,"Sweet and Sour: Tales from China (FA68)",{"$f":"COUNTIF(Scans!B:B,'Book Shark F'!B48)>0","v":false},{"$f":"COUNTIF(Scans!B:B,'Book Shark F'!A48)>0","v":false}]
[null,64401715,"The Big Wave (FR05)",{"$f":"COUNTIF(Scans!B:B,'Book Shark F'!B49)>0","v":false},{"$f":"COUNTIF(Scans!B:B,'Book Shark F'!A49)>0","v":false}]
[null,1416949739,"The Cat Who Went to Heaven (FR06)",{"$f":"COUNTIF(Scans!B:B,'Book Shark F'!B50)>0","v":false},{"$f":"COUNTIF(Scans!B:B,'Book Shark F'!A50)>0","v":false}]
[null,"054732863X","The Kite Fighters (FR04)",{"$f":"COUNTIF(Scans!B:B,'Book Shark F'!B51)>0","v":false},{"$f":"COUNTIF(Scans!B:B,'Book Shark F'!A51)>0","v":false}]
[null,null,"The Year of the Dog (FA69)",{"$f":"COUNTIF(Scans!B:B,'Book Shark F'!B52)>0","v":false},{"$f":"COUNTIF(Scans!B:B,'Book Shark F'!A52)>0","v":false}]
[null,64402029,"Water Sky (FR01)",{"$f":"COUNTIF(Scans!B:B,'Book Shark F'!B53)>0","v":false},{"$f":"COUNTIF(Scans!B:B,'Book Shark F'!A53)>0","v":false}]
[null,1416971688,"Wild Orchid (FR11)",{"$f":"COUNTIF(Scans!B:B,'Book Shark F'!B54)>0","v":false},{"$f":"COUNTIF(Scans!B:B,'Book Shark F'!A54)>0","v":false}]
["Required Resources"]
[null,null,"D-Ring 3-inch Binder with Tabs (BK50)",{"$f":"COUNTIF(Scans!B:B,'Book Shark F'!B56)>0","v":false},{"$f":"COUNTIF(Scans!B:B,'Book Shark F'!A56)>0","v":false}]
[null,null,"Markable Map (MAP1)",{"$f":"COUNTIF(Scans!B:B,'Book Shark F'!B57)>0","v":false},{"$f":"COUNTIF(Scans!B:B,'Book Shark F'!A57)>0","v":false}]
[null,null,"Markable Map Markers (MAP2)",{"$f":"COUNTIF(Scans!B:B,'Book Shark F'!B58)>0","v":false},{"$f":"COUNTIF(Scans!B:B,'Book Shark F'!A58)>0","v":false}]
[null,null,"The Timeline Book (RR120)",{"$f":"COUNTIF(Scans!B:B,'Book Shark F'!B59)>0","v":false},{"$f":"COUNTIF(Scans!B:B,'Book Shark F'!A59)>0","v":false}]
["Language Arts"]
[null,null,"Language Arts F Instructor's Guide (FLB)",{"$f":"COUNTIF(Scans!B:B,'Book Shark F'!B61)>0","v":false},{"$f":"COUNTIF(Scans!B:B,'Book Shark F'!A61)>0","v":false}]
["Science"]
[null,316034436,"Blood & Guts: A Working Guide to Your Own Insides (FS12)",{"$f":"COUNTIF(Scans!B:B,'Book Shark F'!B63)>0","v":false},{"$f":"COUNTIF(Scans!B:B,'Book Shark F'!A63)>0","v":false}]
[null,471176656,"Food and Nutrition for Every Kid (FS05)",{"$f":"COUNTIF(Scans!B:B,'Book Shark F'!B64)>0","v":false},{"$f":"COUNTIF(Scans!B:B,'Book Shark F'!A64)>0","v":false}]
[null,794522181,"Improve Your Survival Skills (FS06)",{"$f":"COUNTIF(Scans!B:B,'Book Shark F'!B65)>0","v":false},{"$f":"COUNTIF(Scans!B:B,'Book Shark F'!A65)>0","v":false}]
[null,794536301,"Introduction to Genes and DNA (FS08)",{"$f":"COUNTIF(Scans!B:B,'Book Shark F'!B66)>0","v":false},{"$f":"COUNTIF(Scans!B:B,'Book Shark F'!A66)>0","v":false}]
[null,null,"Science F Instructor's Guide │Ages 10-13 (FSB)",{"$f":"COUNTIF(Scans!B:B,'Book Shark F'!B67)>0","v":false},{"$f":"COUNTIF(Scans!B:B,'Book Shark F'!A67)>0","v":false}]
[null,1604337133,"The Boy's Body Book: Everything You Need to Know for Growing Up You (FS02)",{"$f":"COUNTIF(Scans!B:B,'Book Shark F'!B68)>0","v":false},{"$f":"COUNTIF(Scans!B:B,'Book Shark F'!A68)>0","v":false}]
[null,1609580834,"The Care & Keeping of You: The Body Book for Younger Girls (FS01)",{"$f":"COUNTIF(Scans!B:B,'Book Shark F'!B69)>0","v":false},{"$f":"COUNTIF(Scans!B:B,'Book Shark F'!A69)>0","v":false}]
[null,794508537,"Understanding Your Brain (FS10)",{"$f":"COUNTIF(Scans!B:B,'Book Shark F'!B70)>0","v":false},{"$f":"COUNTIF(Scans!B:B,'Book Shark F'!A70)>0","v":false}]
[null,794515576,"Usborne Internet-Linked Complete Book of the Human Body (FS13)",{"$f":"COUNTIF(Scans!B:B,'Book Shark F'!B71)>0","v":false},{"$f":"COUNTIF(Scans!B:B,'Book Shark F'!A71)>0","v":false}]
["Math"]
[null,null,"Fraction Overlay Kit (RM17)",{"$f":"COUNTIF(Scans!B:B,'Book Shark F'!B73)>0","v":false},{"$f":"COUNTIF(Scans!B:B,'Book Shark F'!A73)>0","v":false}]
[null,null,"Math-U-See Epsilon Instruction Pack (5M15)",{"$f":"COUNTIF(Scans!B:B,'Book Shark F'!B74)>0","v":false},{"$f":"COUNTIF(Scans!B:B,'Book Shark F'!A74)>0","v":false}]
[null,null,"Math-U-See Epsilon Student Pack (5M16)",{"$f":"COUNTIF(Scans!B:B,'Book Shark F'!B75)>0","v":false},{"$f":"COUNTIF(Scans!B:B,'Book Shark F'!A75)>0","v":false}]
["Spelling"]
[null,null,"Spelling You See | Ancient Achievements Universal Set (SUS6)",{"$f":"COUNTIF(Scans!B:B,'Book Shark F'!B77)>0","v":false},{"$f":"COUNTIF(Scans!B:B,'Book Shark F'!A77)>0","v":false}]

{"sheet":"Book Shark G","index":8,"n_rows":56,"n_cols":5,"rows_kept":56,"cut":false,"hidden":false,"merged":[]}
[]
["Book Shark G"]
[null,"ISBN Number","Title","Accounted for","Alternate Accounted for"]
["History G"]
[null,null,"History G Instructor's Guide │Ages 11-13 (GHB)",{"$f":"COUNTIF(Scans!B:B,'Book Shark G'!B5)>0","v":false},{"$f":"COUNTIF(Scans!B:B,'Book Shark G'!A5)>0","v":false}]
[null,1933339004,"Story of the World: Ancient Times (GH05)",{"$f":"COUNTIF(Scans!B:B,'Book Shark G'!B6)>0","v":false},{"$f":"COUNTIF(Scans!B:B,'Book Shark G'!A6)>0","v":false}]
[null,1933339098,"Story of the World: The Middle Ages (GH06)",{"$f":"COUNTIF(Scans!B:B,'Book Shark G'!B7)>0","v":false},{"$f":"COUNTIF(Scans!B:B,'Book Shark G'!A7)>0","v":false}]
[null,null,"The Kingfisher History Encyclopedia (GH08)",{"$f":"COUNTIF(Scans!B:B,'Book Shark G'!B8)>0","v":false},{"$f":"COUNTIF(Scans!B:B,'Book Shark G'!A8)>0","v":false}]
[null,null,"Timeline Figures - 6 (GHB1)",{"$f":"COUNTIF(Scans!B:B,'Book Shark G'!B9)>0","v":false},{"$f":"COUNTIF(Scans!B:B,'Book Shark G'!A9)>0","v":false}]
["Read-Alouds G"]
[null,547534264,"A Single Shard (GA10)",{"$f":"COUNTIF(Scans!B:B,'Book Shark G'!B11)>0","v":false},{"$f":"COUNTIF(Scans!B:B,'Book Shark G'!A11)>0","v":false}]
[null,null,"Favorite Poems Old and New (GA06)",{"$f":"COUNTIF(Scans!B:B,'Book Shark G'!B12)>0","v":false},{"$f":"COUNTIF(Scans!B:B,'Book Shark G'!A12)>0","v":false}]
[null,312380054,"I, Juan de Pareja (GA07)",{"$f":"COUNTIF(Scans!B:B,'Book Shark G'!B13)>0","v":false},{"$f":"COUNTIF(Scans!B:B,'Book Shark G'!A13)>0","v":false}]
[null,544104889,"The Adventures of Sir Balin the Ill-Fated (GA17)",{"$f":"COUNTIF(Scans!B:B,'Book Shark G'!B14)>0","v":false},{"$f":"COUNTIF(Scans!B:B,'Book Shark G'!A14)>0","v":false}]
[null,140303359,"The Golden Goblet (GA01)",{"$f":"COUNTIF(Scans!B:B,'Book Shark G'!B15)>0","v":false},{"$f":"COUNTIF(Scans!B:B,'Book Shark G'!A15)>0","v":false}]
[null,null,"The Great and Terrible Quest (GR06)",{"$f":"COUNTIF(Scans!B:B,'Book Shark G'!B16)>0","v":false},{"$f":"COUNTIF(Scans!B:B,'Book Shark G'!A16)>0","v":false}]
[null,1883937485,"The Hidden Treasure of Glaston (GA15)",{"$f":"COUNTIF(Scans!B:B,'Book Shark G'!B17)>0","v":false},{"$f":"COUNTIF(Scans!B:B,'Book Shark G'!A17)>0","v":false}]
[null,689821212,"The Second Mrs. Giaconda (GA09)",{"$f":"COUNTIF(Scans!B:B,'Book Shark G'!B18)>0","v":false},{"$f":"COUNTIF(Scans!B:B,'Book Shark G'!A18)>0","v":false}]
[null,141305959,"The Shakespeare Stealer (GA14)",{"$f":"COUNTIF(Scans!B:B,'Book Shark G'!B19)>0","v":false},{"$f":"COUNTIF(Scans!B:B,'Book Shark G'!A19)>0","v":false}]
[null,312644310,"The Silver Branch (GA18)",{"$f":"COUNTIF(Scans!B:B,'Book Shark G'!B20)>0","v":false},{"$f":"COUNTIF(Scans!B:B,'Book Shark G'!A20)>0","v":false}]
[null,618154280,"The Trojan War (GA04)",{"$f":"COUNTIF(Scans!B:B,'Book Shark G'!B21)>0","v":false},{"$f":"COUNTIF(Scans!B:B,'Book Shark G'!A21)>0","v":false}]
["Level G Readers"]
[null,395616190,"A Murder for her Majesty (HA17)",{"$f":"COUNTIF(Scans!B:B,'Book Shark G'!B23)>0","v":false},{"$f":"COUNTIF(Scans!B:B,'Book Shark G'!A23)>0","v":false}]
[null,"068984624X","A Proud Taste for Scarlet and Miniver (GR17)",{"$f":"COUNTIF(Scans!B:B,'Book Shark G'!B24)>0","v":false},{"$f":"COUNTIF(Scans!B:B,'Book Shark G'!A24)>0","v":false}]
[null,"014032464X","Adam of the Road (GR03)",{"$f":"COUNTIF(Scans!B:B,'Book Shark G'!B25)>0","v":false},{"$f":"COUNTIF(Scans!B:B,'Book Shark G'!A25)>0","v":false}]
[null,152063781,"Black Horses for the King (GR18)",{"$f":"COUNTIF(Scans!B:B,'Book Shark G'!B26)>0","v":false},{"$f":"COUNTIF(Scans!B:B,'Book Shark G'!A26)>0","v":false}]
[null,547722184,"Catherine Called Birdy (GR19)",{"$f":"COUNTIF(Scans!B:B,'Book Shark G'!B27)>0","v":false},{"$f":"COUNTIF(Scans!B:B,'Book Shark G'!A27)>0","v":false}]
[null,618154264,"Greek Myths (GR24)",{"$f":"COUNTIF(Scans!B:B,'Book Shark G'!B28)>0","v":false},{"$f":"COUNTIF(Scans!B:B,'Book Shark G'!A28)>0","v":false}]
[null,440220114,"King's Shadow (GR26)",{"$f":"COUNTIF(Scans!B:B,'Book Shark G'!B29)>0","v":false},{"$f":"COUNTIF(Scans!B:B,'Book Shark G'!A29)>0","v":false}]
[null,1887840311,"Leonardo Da Vinci (GR11)",{"$f":"COUNTIF(Scans!B:B,'Book Shark G'!B30)>0","v":false},{"$f":"COUNTIF(Scans!B:B,'Book Shark G'!A30)>0","v":false}]
[null,140319298,"Mara, Daughter of the Nile (GR07)",{"$f":"COUNTIF(Scans!B:B,'Book Shark G'!B31)>0","v":false},{"$f":"COUNTIF(Scans!B:B,'Book Shark G'!A31)>0","v":false}]
[null,152162682,"Mystery of the Roman Ransom (GR10)",{"$f":"COUNTIF(Scans!B:B,'Book Shark G'!B32)>0","v":false},{"$f":"COUNTIF(Scans!B:B,'Book Shark G'!A32)>0","v":false}]
[null,64406695,"The Beduins' Gazelle (GR08)",{"$f":"COUNTIF(Scans!B:B,'Book Shark G'!B33)>0","v":false},{"$f":"COUNTIF(Scans!B:B,'Book Shark G'!A33)>0","v":false}]
[null,1883937434,"The Ides of April (GR14)",{"$f":"COUNTIF(Scans!B:B,'Book Shark G'!B34)>0","v":false},{"$f":"COUNTIF(Scans!B:B,'Book Shark G'!A34)>0","v":false}]
[null,618615121,"The Samurai's Tale (GR01)",{"$f":"COUNTIF(Scans!B:B,'Book Shark G'!B35)>0","v":false},{"$f":"COUNTIF(Scans!B:B,'Book Shark G'!A35)>0","v":false}]
[null,"096670679X","Theras And His Town (GR20)",{"$f":"COUNTIF(Scans!B:B,'Book Shark G'!B36)>0","v":false},{"$f":"COUNTIF(Scans!B:B,'Book Shark G'!A36)>0","v":false}]
["Required Resources"]
[null,null,"D-Ring 3-inch Binder with Tabs (BK50)",{"$f":"COUNTIF(Scans!B:B,'Book Shark G'!B38)>0","v":false},{"$f":"COUNTIF(Scans!B:B,'Book Shark G'!A38)>0","v":false}]
[null,null,"Markable Map (MAP1)",{"$f":"COUNTIF(Scans!B:B,'Book Shark G'!B39)>0","v":false},{"$f":"COUNTIF(Scans!B:B,'Book Shark G'!A39)>0","v":false}]
[null,null,"Markable Map Markers (MAP2)",{"$f":"COUNTIF(Scans!B:B,'Book Shark G'!B40)>0","v":false},{"$f":"COUNTIF(Scans!B:B,'Book Shark G'!A40)>0","v":false}]
[null,null,"The Timeline Book (RR120)",{"$f":"COUNTIF(Scans!B:B,'Book Shark G'!B41)>0","v":false},{"$f":"COUNTIF(Scans!B:B,'Book Shark G'!A41)>0","v":false}]
["Science"]
[null,794524699,"Encyclopedia of Planet Earth (GS01)",{"$f":"COUNTIF(Scans!B:B,'Book Shark G'!B43)>0","v":false},{"$f":"COUNTIF(Scans!B:B,'Book Shark G'!A43)>0","v":false}]
[null,1619302128,"Genetics (GS09)",{"$f":"COUNTIF(Scans!B:B,'Book Shark G'!B44)>0","v":false},{"$f":"COUNTIF(Scans!B:B,'Book Shark G'!A44)>0","v":false}]
[null,null,"Science G Instructor's Guide | Ages 11-13 (GSB)",{"$f":"COUNTIF(Scans!B:B,'Book Shark G'!B45)>0","v":false},{"$f":"COUNTIF(Scans!B:B,'Book Shark G'!A45)>0","v":false}]
[null,null,"Science Supplies Kit G (GSK)",{"$f":"COUNTIF(Scans!B:B,'Book Shark G'!B46)>0","v":false},{"$f":"COUNTIF(Scans!B:B,'Book Shark G'!A46)>0","v":false}]
[null,null,"TOPS 10 - Analysis (GS05)",{"$f":"COUNTIF(Scans!B:B,'Book Shark G'!B47)>0","v":false},{"$f":"COUNTIF(Scans!B:B,'Book Shark G'!A47)>0","v":false}]
[null,null,"TOPS 13 - Cohesion/Adhesion (GS06)",{"$f":"COUNTIF(Scans!B:B,'Book Shark G'!B48)>0","v":false},{"$f":"COUNTIF(Scans!B:B,'Book Shark G'!A48)>0","v":false}]
[null,794521207,"What's Science All About? (GS08)",{"$f":"COUNTIF(Scans!B:B,'Book Shark G'!B49)>0","v":false},{"$f":"COUNTIF(Scans!B:B,'Book Shark G'!A49)>0","v":false}]
["Math"]
[null,null,"Math-U-See Algebra/Decimal Inserts (RM16)",{"$f":"COUNTIF(Scans!B:B,'Book Shark G'!B51)>0","v":false},{"$f":"COUNTIF(Scans!B:B,'Book Shark G'!A51)>0","v":false}]
[null,null,"Math-U-See Integer Block Kit (RM15)",{"$f":"COUNTIF(Scans!B:B,'Book Shark G'!B52)>0","v":false},{"$f":"COUNTIF(Scans!B:B,'Book Shark G'!A52)>0","v":false}]
[null,null,"Math-U-See Zeta Instruction Pack (6M15)",{"$f":"COUNTIF(Scans!B:B,'Book Shark G'!B53)>0","v":false},{"$f":"COUNTIF(Scans!B:B,'Book Shark G'!A53)>0","v":false}]
[null,null,"Math-U-See Zeta Student Pack (6M16)",{"$f":"COUNTIF(Scans!B:B,'Book Shark G'!B54)>0","v":false},{"$f":"COUNTIF(Scans!B:B,'Book Shark G'!A54)>0","v":false}]
["Spelling"]
[null,null,"Spelling You See | Modern Milestones Universal Set (SUS7)",{"$f":"COUNTIF(Scans!B:B,'Book Shark G'!B56)>0","v":false},{"$f":"COUNTIF(Scans!B:B,'Book Shark G'!A56)>0","v":false}]

{"sheet":"Book Shark H","index":9,"n_rows":61,"n_cols":5,"rows_kept":61,"cut":false,"hidden":false,"merged":[]}
[]
["Book Shark H"]
[null,"ISBN Number","Title","Accounted for","Alternate Accounted for"]
["History H"]
[null,null,"History H Instructor's Guide │Ages 12-14 (HHB)",{"$f":"COUNTIF(Scans!B:B,'Book Shark H'!B5)>0","v":false},{"$f":"COUNTIF(Scans!B:B,'Book Shark H'!A5)>0","v":false}]
[null,971412995,"Story of the World: Early Modern Times (HH01)",{"$f":"COUNTIF(Scans!B:B,'Book Shark H'!B6)>0","v":false},{"$f":"COUNTIF(Scans!B:B,'Book Shark H'!A6)>0","v":false}]
[null,972860339,"Story of the World: Modern Age (HH02)",{"$f":"COUNTIF(Scans!B:B,'Book Shark H'!B7)>0","v":false},{"$f":"COUNTIF(Scans!B:B,'Book Shark H'!A7)>0","v":false}]
[null,null,"Timeline Figures - 7 (HHB1)",{"$f":"COUNTIF(Scans!B:B,'Book Shark H'!B8)>0","v":false},{"$f":"COUNTIF(Scans!B:B,'Book Shark H'!A8)>0","v":false}]
["Read-Alouds H"]
[null,64470482,"Banner in the Sky (HA10)",{"$f":"COUNTIF(Scans!B:B,'Book Shark H'!B10)>0","v":false},{"$f":"COUNTIF(Scans!B:B,'Book Shark H'!A10)>0","v":false}]
[null,"076364210X","Classic Poetry (HA15)",{"$f":"COUNTIF(Scans!B:B,'Book Shark H'!B11)>0","v":false},{"$f":"COUNTIF(Scans!B:B,'Book Shark H'!A11)>0","v":false}]
[null,64408191,"Homeless Bird (HR08)",{"$f":"COUNTIF(Scans!B:B,'Book Shark H'!B12)>0","v":false},{"$f":"COUNTIF(Scans!B:B,'Book Shark H'!A12)>0","v":false}]
[null,1887840001,"Master Cornhill (GA05)",{"$f":"COUNTIF(Scans!B:B,'Book Shark H'!B13)>0","v":false},{"$f":"COUNTIF(Scans!B:B,'Book Shark H'!A13)>0","v":false}]
[null,547577095,"Number the Stars (HA13)",{"$f":"COUNTIF(Scans!B:B,'Book Shark H'!B14)>0","v":false},{"$f":"COUNTIF(Scans!B:B,'Book Shark H'!A14)>0","v":false}]
[null,316085197,"Only the Names Remain: The Cherokees and the Trail of Tears (HR13)",{"$f":"COUNTIF(Scans!B:B,'Book Shark H'!B15)>0","v":false},{"$f":"COUNTIF(Scans!B:B,'Book Shark H'!A15)>0","v":false}]
[null,140309268,"Secret of the Andes (DA01)",{"$f":"COUNTIF(Scans!B:B,'Book Shark H'!B16)>0","v":false},{"$f":"COUNTIF(Scans!B:B,'Book Shark H'!A16)>0","v":false}]
[null,141305711,"The Arrow Over the Door (HA16)",{"$f":"COUNTIF(Scans!B:B,'Book Shark H'!B17)>0","v":false},{"$f":"COUNTIF(Scans!B:B,'Book Shark H'!A17)>0","v":false}]
[null,1554987652,"The Breadwinner (HR01)",{"$f":"COUNTIF(Scans!B:B,'Book Shark H'!B18)>0","v":false},{"$f":"COUNTIF(Scans!B:B,'Book Shark H'!A18)>0","v":false}]
[null,"006447027X","The Endless Steppe (HA11)",{"$f":"COUNTIF(Scans!B:B,'Book Shark H'!B19)>0","v":false},{"$f":"COUNTIF(Scans!B:B,'Book Shark H'!A19)>0","v":false}]
[null,439281342,"The Ravenmaster's Secret: Escape From The Tower of London (HA01)",{"$f":"COUNTIF(Scans!B:B,'Book Shark H'!B20)>0","v":false},{"$f":"COUNTIF(Scans!B:B,'Book Shark H'!A20)>0","v":false}]
[null,618150749,"The Sherwood Ring (HA05)",{"$f":"COUNTIF(Scans!B:B,'Book Shark H'!B21)>0","v":false},{"$f":"COUNTIF(Scans!B:B,'Book Shark H'!A21)>0","v":false}]
[null,140345434,"The Singing Tree (HA02)",{"$f":"COUNTIF(Scans!B:B,'Book Shark H'!B22)>0","v":false},{"$f":"COUNTIF(Scans!B:B,'Book Shark H'!A22)>0","v":false}]
[null,440407591,"Year of Impossible Goodbyes (HR02)",{"$f":"COUNTIF(Scans!B:B,'Book Shark H'!B23)>0","v":false},{"$f":"COUNTIF(Scans!B:B,'Book Shark H'!A23)>0","v":false}]
["Level H Readers"]
[null,64408795,"Angel on the Square (HR07)",{"$f":"COUNTIF(Scans!B:B,'Book Shark H'!B25)>0","v":false},{"$f":"COUNTIF(Scans!B:B,'Book Shark H'!A25)>0","v":false}]
[null,"141691336X","Betsy and the Emperor (HR04)",{"$f":"COUNTIF(Scans!B:B,'Book Shark H'!B26)>0","v":false},{"$f":"COUNTIF(Scans!B:B,'Book Shark H'!A26)>0","v":false}]
[null,60507268,"Chu Ju's House (HR21)",{"$f":"COUNTIF(Scans!B:B,'Book Shark H'!B27)>0","v":false},{"$f":"COUNTIF(Scans!B:B,'Book Shark H'!A27)>0","v":false}]
[null,590437151,"Escape from Warsaw (HR15)",{"$f":"COUNTIF(Scans!B:B,'Book Shark H'!B28)>0","v":false},{"$f":"COUNTIF(Scans!B:B,'Book Shark H'!A28)>0","v":false}]
[null,440418291,"Nory Ryan's Song (HR12)",{"$f":"COUNTIF(Scans!B:B,'Book Shark H'!B29)>0","v":false},{"$f":"COUNTIF(Scans!B:B,'Book Shark H'!A29)>0","v":false}]
[null,545107962,"Operation Yes (HA20)",{"$f":"COUNTIF(Scans!B:B,'Book Shark H'!B30)>0","v":false},{"$f":"COUNTIF(Scans!B:B,'Book Shark H'!A30)>0","v":false}]
[null,142402249,"Snow Treasure (HR14)",{"$f":"COUNTIF(Scans!B:B,'Book Shark H'!B31)>0","v":false},{"$f":"COUNTIF(Scans!B:B,'Book Shark H'!A31)>0","v":false}]
[null,"044041184X","The Broken Blade (HR05)",{"$f":"COUNTIF(Scans!B:B,'Book Shark H'!B32)>0","v":false},{"$f":"COUNTIF(Scans!B:B,'Book Shark H'!A32)>0","v":false}]
[null,142405418,"The Ghost In The Tokaido Inn (HR06)",{"$f":"COUNTIF(Scans!B:B,'Book Shark H'!B33)>0","v":false},{"$f":"COUNTIF(Scans!B:B,'Book Shark H'!A33)>0","v":false}]
[null,"014030133X","The Good Master (HR03)",{"$f":"COUNTIF(Scans!B:B,'Book Shark H'!B34)>0","v":false},{"$f":"COUNTIF(Scans!B:B,'Book Shark H'!A34)>0","v":false}]
[null,618747834,"The King's Fifth (HR10)",{"$f":"COUNTIF(Scans!B:B,'Book Shark H'!B35)>0","v":false},{"$f":"COUNTIF(Scans!B:B,'Book Shark H'!A35)>0","v":false}]
[null,486421228,"The Scarlet Pimpernel (HR22)",{"$f":"COUNTIF(Scans!B:B,'Book Shark H'!B36)>0","v":false},{"$f":"COUNTIF(Scans!B:B,'Book Shark H'!A36)>0","v":false}]
["Required Resources"]
[null,null,"D-Ring 3-inch Binder with Tabs (BK50)",{"$f":"COUNTIF(Scans!B:B,'Book Shark H'!B38)>0","v":false},{"$f":"COUNTIF(Scans!B:B,'Book Shark H'!A38)>0","v":false}]
[null,null,"Markable Map (MAP1)",{"$f":"COUNTIF(Scans!B:B,'Book Shark H'!B39)>0","v":false},{"$f":"COUNTIF(Scans!B:B,'Book Shark H'!A39)>0","v":false}]
[null,null,"Markable Map Markers (MAP2)",{"$f":"COUNTIF(Scans!B:B,'Book Shark H'!B40)>0","v":false},{"$f":"COUNTIF(Scans!B:B,'Book Shark H'!A40)>0","v":false}]
[null,null,"The Timeline Book (RR120)",{"$f":"COUNTIF(Scans!B:B,'Book Shark H'!B41)>0","v":false},{"$f":"COUNTIF(Scans!B:B,'Book Shark H'!A41)>0","v":false}]
["Language Arts"]
[null,null,"BookShark's Language Arts 7 Instructor's Guide (7LB)",{"$f":"COUNTIF(Scans!B:B,'Book Shark H'!B43)>0","v":false},{"$f":"COUNTIF(Scans!B:B,'Book Shark H'!A43)>0","v":false}]
["Science"]
[null,1619301652,"CanaIs and Dams (HS09)",{"$f":"COUNTIF(Scans!B:B,'Book Shark H'!B45)>0","v":false},{"$f":"COUNTIF(Scans!B:B,'Book Shark H'!A45)>0","v":false}]
[null,756662915,"Cool Stuff 2.0 and How it Works (GS02)",{"$f":"COUNTIF(Scans!B:B,'Book Shark H'!B46)>0","v":false},{"$f":"COUNTIF(Scans!B:B,'Book Shark H'!A46)>0","v":false}]
[null,1934670340,"Energy (HS04)",{"$f":"COUNTIF(Scans!B:B,'Book Shark H'!B47)>0","v":false},{"$f":"COUNTIF(Scans!B:B,'Book Shark H'!A47)>0","v":false}]
[null,1936313464,"Garbage (HS08)",{"$f":"COUNTIF(Scans!B:B,'Book Shark H'!B48)>0","v":false},{"$f":"COUNTIF(Scans!B:B,'Book Shark H'!A48)>0","v":false}]
[null,1934670049,"Planet Earth (HS05)",{"$f":"COUNTIF(Scans!B:B,'Book Shark H'!B49)>0","v":false},{"$f":"COUNTIF(Scans!B:B,'Book Shark H'!A49)>0","v":false}]
[null,1936749750,"Robotics (HS06)",{"$f":"COUNTIF(Scans!B:B,'Book Shark H'!B50)>0","v":false},{"$f":"COUNTIF(Scans!B:B,'Book Shark H'!A50)>0","v":false}]
[null,null,"Science H Instructor's Guide | Ages 12-14 (HSB)",{"$f":"COUNTIF(Scans!B:B,'Book Shark H'!B51)>0","v":false},{"$f":"COUNTIF(Scans!B:B,'Book Shark H'!A51)>0","v":false}]
[null,null,"Science Supplies Kit H (HSK)",{"$f":"COUNTIF(Scans!B:B,'Book Shark H'!B52)>0","v":false},{"$f":"COUNTIF(Scans!B:B,'Book Shark H'!A52)>0","v":false}]
[null,1936313804,"The Industrial Revolution (HS07)",{"$f":"COUNTIF(Scans!B:B,'Book Shark H'!B53)>0","v":false},{"$f":"COUNTIF(Scans!B:B,'Book Shark H'!A53)>0","v":false}]
[null,794519865,"Weather & Climate Change (HS10)",{"$f":"COUNTIF(Scans!B:B,'Book Shark H'!B54)>0","v":false},{"$f":"COUNTIF(Scans!B:B,'Book Shark H'!A54)>0","v":false}]
["Math"]
[null,null,"Math-U-See Algebra/Decimal Inserts (RM16)",{"$f":"COUNTIF(Scans!B:B,'Book Shark H'!B56)>0","v":false},{"$f":"COUNTIF(Scans!B:B,'Book Shark H'!A56)>0","v":false}]
[null,null,"Math-U-See Integer Block Kit (RM15)",{"$f":"COUNTIF(Scans!B:B,'Book Shark H'!B57)>0","v":false},{"$f":"COUNTIF(Scans!B:B,'Book Shark H'!A57)>0","v":false}]
[null,null,"Math-U-See Pre-Algebra Instruction Pack (7M15)",{"$f":"COUNTIF(Scans!B:B,'Book Shark H'!B58)>0","v":false},{"$f":"COUNTIF(Scans!B:B,'Book Shark H'!A58)>0","v":false}]
[null,null,"Math-U-See Pre-Algebra Student Pack (7M16)",{"$f":"COUNTIF(Scans!B:B,'Book Shark H'!B59)>0","v":false},{"$f":"COUNTIF(Scans!B:B,'Book Shark H'!A59)>0","v":false}]
["Required Resources"]
[null,753468751,"The Kingfisher History Encyclopedia (GH08)",{"$f":"COUNTIF(Scans!B:B,'Book Shark H'!B61)>0","v":false},{"$f":"COUNTIF(Scans!B:B,'Book Shark H'!A61)>0","v":false}]

{"sheet":"Book Shark I","index":10,"n_rows":33,"n_cols":4,"rows_kept":33,"cut":false,"hidden":true,"merged":[]}
[]
["Book Shark I"]
[null,"ISBN Number","Title","Accounted for"]
[null,null,null,{"$f":"COUNTIF(Scans!B:B,'Book Shark I'!B4)>0","v":false}]
[null,null,null,{"$f":"COUNTIF(Scans!B:B,'Book Shark I'!B5)>0","v":false}]
[null,null,null,{"$f":"COUNTIF(Scans!B:B,'Book Shark I'!B6)>0","v":false}]
[null,null,null,{"$f":"COUNTIF(Scans!B:B,'Book Shark I'!B7)>0","v":false}]
[null,null,null,{"$f":"COUNTIF(Scans!B:B,'Book Shark I'!B8)>0","v":false}]
[null,null,null,{"$f":"COUNTIF(Scans!B:B,'Book Shark I'!B9)>0","v":false}]
[null,null,null,{"$f":"COUNTIF(Scans!B:B,'Book Shark I'!B10)>0","v":false}]
[null,null,null,{"$f":"COUNTIF(Scans!B:B,'Book Shark I'!B11)>0","v":false}]
[null,null,null,{"$f":"COUNTIF(Scans!B:B,'Book Shark I'!B12)>0","v":false}]
[null,null,null,{"$f":"COUNTIF(Scans!B:B,'Book Shark I'!B13)>0","v":false}]
[null,null,null,{"$f":"COUNTIF(Scans!B:B,'Book Shark I'!B14)>0","v":false}]
[null,null,null,{"$f":"COUNTIF(Scans!B:B,'Book Shark I'!B15)>0","v":false}]
[null,null,null,{"$f":"COUNTIF(Scans!B:B,'Book Shark I'!B16)>0","v":false}]
[null,null,null,{"$f":"COUNTIF(Scans!B:B,'Book Shark I'!B17)>0","v":false}]
[null,null,null,{"$f":"COUNTIF(Scans!B:B,'Book Shark I'!B18)>0","v":false}]
[null,null,null,{"$f":"COUNTIF(Scans!B:B,'Book Shark I'!B19)>0","v":false}]
[null,null,null,{"$f":"COUNTIF(Scans!B:B,'Book Shark I'!B20)>0","v":false}]
[null,null,null,{"$f":"COUNTIF(Scans!B:B,'Book Shark I'!B21)>0","v":false}]
[null,null,null,{"$f":"COUNTIF(Scans!B:B,'Book Shark I'!B22)>0","v":false}]
[null,null,null,{"$f":"COUNTIF(Scans!B:B,'Book Shark I'!B23)>0","v":false}]
[null,null,null,{"$f":"COUNTIF(Scans!B:B,'Book Shark I'!B24)>0","v":false}]
[null,null,null,{"$f":"COUNTIF(Scans!B:B,'Book Shark I'!B25)>0","v":false}]
[null,null,null,{"$f":"COUNTIF(Scans!B:B,'Book Shark I'!B26)>0","v":false}]
[null,null,null,{"$f":"COUNTIF(Scans!B:B,'Book Shark I'!B27)>0","v":false}]
[null,null,null,{"$f":"COUNTIF(Scans!B:B,'Book Shark I'!B28)>0","v":false}]
[null,null,null,{"$f":"COUNTIF(Scans!B:B,'Book Shark I'!B29)>0","v":false}]
[null,null,null,{"$f":"COUNTIF(Scans!B:B,'Book Shark I'!B30)>0","v":false}]
[null,null,null,{"$f":"COUNTIF(Scans!B:B,'Book Shark I'!B31)>0","v":false}]
[null,null,null,{"$f":"COUNTIF(Scans!B:B,'Book Shark I'!B32)>0","v":false}]
[null,null,null,{"$f":"COUNTIF(Scans!B:B,'Book Shark I'!B33)>0","v":false}]

{"sheet":"User Information","index":11,"n_rows":4,"n_cols":4,"rows_kept":4,"cut":false,"hidden":false,"merged":[]}
[]
[null,"https://isbnsearch.org/",null,"Using this website you can look the ISBN number for any book"]
[]
[null,"https://www.bookshark.com/",null,"Link to Book Shark"]

{"sheet":"Book Template","index":12,"n_rows":4,"n_cols":5,"rows_kept":4,"cut":false,"hidden":false,"merged":[]}
[]
["Title"]
[null,"ISBN Number","Title","Accounted for","Alternate Accounted for"]
[null,null,null,{"$f":"COUNTIF(Scans!B:B,'Book Template'!B4)>0","v":false},{"$f":"COUNTIF(Scans!B:B,'Book Template'!A4)>0","v":false}]